Workbook

Sheet Order Form
A1: MACRO TRACKER
A2: Email Order to: | B2: EatCleanKamloopsOrders@outlook.com | I2: Name
A3: Phone Order in: | B3: 778-471-0804 | I3: Phone
A4: Drop Order off: | B4: 102-795 McGill Rd, Kamloops | I4: Email:
A5: Pick up Location: | B5: 102-795 McGill Rd, Kamloops | I5: Pick Up Date
I6: Pick Up Time
B7: CTRL+Q TO CLEAR SHEET
I9: Total Price with Taxes | K9: =(#REF!*0.05)+#REF! -> 
A10: MEAL 1
A11: Use Drop Down Menus to Choose Options | J11: Use Drop Down Menu to Choose Options
A12: Food Type | B12: Food | C12: Portion Size (g) | D12: Price ($) | E12: Protein (g) | F12: Carbs (g) | G12: Fat (g) | H12: Calories | J12: Meal 1 Quantity (Min. 2)
D13: =SUMIFS('Macro Breakdown - Meal Prep'!$K:$K,'Macro Breakdown - Meal Prep'!$B:$B,'Order Form'!$B13,'Macro Breakdown - Meal Prep'!$C:$C,'Order Form'!$C13) -> 0 | E13: =SUMIFS('Macro Breakdown - Meal Prep'!I$5:I$152,'Macro Breakdown - Meal Prep'!$B$5:$B$152,'Order Form'!$B13,'Macro Breakdown - Meal Prep'!$C$5:$C$152,'Order Form'!$C13) -> 0 | F13: =SUMIFS('Macro Breakdown - Meal Prep'!H$5:H$152,'Macro Breakdown - Meal Prep'!$B$5:$B$152,'Order Form'!$B13,'Macro Breakdown - Meal Prep'!$C$5:$C$152,'Order Form'!$C13) -> 0 | G13: =SUMIFS('Macro Breakdown - Meal Prep'!G$5:G$152,'Macro Breakdown - Meal Prep'!$B$5:$B$152,'Order Form'!$B13,'Macro Breakdown - Meal Prep'!$C$5:$C$152,'Order Form'!$C13) -> 0 | H13: =SUMIFS('Macro Breakdown - Meal Prep'!J$5:J$152,'Macro Breakdown - Meal Prep'!$B$5:$B$152,'Order Form'!$B13,'Macro Breakdown - Meal Prep'!$C$5:$C$152,'Order Form'!$C13) -> 0 | J13: Total Price for Meal 1 | K13: =K12*D24 -> 0
D14: =SUMIFS('Macro Breakdown - Meal Prep'!$K:$K,'Macro Breakdown - Meal Prep'!$B:$B,'Order Form'!$B14,'Macro Breakdown - Meal Prep'!$C:$C,'Order Form'!$C14) -> 0 | E14: =SUMIFS('Macro Breakdown - Meal Prep'!I$5:I$152,'Macro Breakdown - Meal Prep'!$B$5:$B$152,'Order Form'!$B14,'Macro Breakdown - Meal Prep'!$C$5:$C$152,'Order Form'!$C14) -> 0 | F14: =SUMIFS('Macro Breakdown - Meal Prep'!H$5:H$152,'Macro Breakdown - Meal Prep'!$B$5:$B$152,'Order Form'!$B14,'Macro Breakdown - Meal Prep'!$C$5:$C$152,'Order Form'!$C14) -> 0 | G14: =SUMIFS('Macro Breakdown - Meal Prep'!G$5:G$152,'Macro Breakdown - Meal Prep'!$B$5:$B$152,'Order Form'!$B14,'Macro Breakdown - Meal Prep'!$C$5:$C$152,'Order Form'!$C14) -> 0 | H14: =SUMIFS('Macro Breakdown - Meal Prep'!J$5:J$152,'Macro Breakdown - Meal Prep'!$B$5:$B$152,'Order Form'!$B14,'Macro Breakdown - Meal Prep'!$C$5:$C$152,'Order Form'!$C14) -> 0
D15: =SUMIFS('Macro Breakdown - Meal Prep'!$K:$K,'Macro Breakdown - Meal Prep'!$B:$B,'Order Form'!$B15,'Macro Breakdown - Meal Prep'!$C:$C,'Order Form'!$C15) -> 0 | E15: =SUMIFS('Macro Breakdown - Meal Prep'!I$5:I$152,'Macro Breakdown - Meal Prep'!$B$5:$B$152,'Order Form'!$B15,'Macro Breakdown - Meal Prep'!$C$5:$C$152,'Order Form'!$C15) -> 0 | F15: =SUMIFS('Macro Breakdown - Meal Prep'!H$5:H$152,'Macro Breakdown - Meal Prep'!$B$5:$B$152,'Order Form'!$B15,'Macro Breakdown - Meal Prep'!$C$5:$C$152,'Order Form'!$C15) -> 0 | G15: =SUMIFS('Macro Breakdown - Meal Prep'!G$5:G$152,'Macro Breakdown - Meal Prep'!$B$5:$B$152,'Order Form'!$B15,'Macro Breakdown - Meal Prep'!$C$5:$C$152,'Order Form'!$C15) -> 0 | H15: =SUMIFS('Macro Breakdown - Meal Prep'!J$5:J$152,'Macro Breakdown - Meal Prep'!$B$5:$B$152,'Order Form'!$B15,'Macro Breakdown - Meal Prep'!$C$5:$C$152,'Order Form'!$C15) -> 0
D16: =SUMIFS('Macro Breakdown - Meal Prep'!$K:$K,'Macro Breakdown - Meal Prep'!$B:$B,'Order Form'!$B16,'Macro Breakdown - Meal Prep'!$C:$C,'Order Form'!$C16) -> 0 | E16: =SUMIFS('Macro Breakdown - Meal Prep'!I$5:I$152,'Macro Breakdown - Meal Prep'!$B$5:$B$152,'Order Form'!$B16,'Macro Breakdown - Meal Prep'!$C$5:$C$152,'Order Form'!$C16) -> 0 | F16: =SUMIFS('Macro Breakdown - Meal Prep'!H$5:H$152,'Macro Breakdown - Meal Prep'!$B$5:$B$152,'Order Form'!$B16,'Macro Breakdown - Meal Prep'!$C$5:$C$152,'Order Form'!$C16) -> 0 | G16: =SUMIFS('Macro Breakdown - Meal Prep'!G$5:G$152,'Macro Breakdown - Meal Prep'!$B$5:$B$152,'Order Form'!$B16,'Macro Breakdown - Meal Prep'!$C$5:$C$152,'Order Form'!$C16) -> 0 | H16: =SUMIFS('Macro Breakdown - Meal Prep'!J$5:J$152,'Macro Breakdown - Meal Prep'!$B$5:$B$152,'Order Form'!$B16,'Macro Breakdown - Meal Prep'!$C$5:$C$152,'Order Form'!$C16) -> 0
D17: =SUMIFS('Macro Breakdown - Meal Prep'!$K:$K,'Macro Breakdown - Meal Prep'!$B:$B,'Order Form'!$B17,'Macro Breakdown - Meal Prep'!$C:$C,'Order Form'!$C17) -> 0 | E17: =SUMIFS('Macro Breakdown - Meal Prep'!I$5:I$152,'Macro Breakdown - Meal Prep'!$B$5:$B$152,'Order Form'!$B17,'Macro Breakdown - Meal Prep'!$C$5:$C$152,'Order Form'!$C17) -> 0 | F17: =SUMIFS('Macro Breakdown - Meal Prep'!H$5:H$152,'Macro Breakdown - Meal Prep'!$B$5:$B$152,'Order Form'!$B17,'Macro Breakdown - Meal Prep'!$C$5:$C$152,'Order Form'!$C17) -> 0 | G17: =SUMIFS('Macro Breakdown - Meal Prep'!G$5:G$152,'Macro Breakdown - Meal Prep'!$B$5:$B$152,'Order Form'!$B17,'Macro Breakdown - Meal Prep'!$C$5:$C$152,'Order Form'!$C17) -> 0 | H17: =SUMIFS('Macro Breakdown - Meal Prep'!J$5:J$152,'Macro Breakdown - Meal Prep'!$B$5:$B$152,'Order Form'!$B17,'Macro Breakdown - Meal Prep'!$C$5:$C$152,'Order Form'!$C17) -> 0
D18: =SUMIFS('Macro Breakdown - Meal Prep'!$K:$K,'Macro Breakdown - Meal Prep'!$B:$B,'Order Form'!$B18,'Macro Breakdown - Meal Prep'!$C:$C,'Order Form'!$C18) -> 0 | E18: =SUMIFS('Macro Breakdown - Meal Prep'!I$5:I$152,'Macro Breakdown - Meal Prep'!$B$5:$B$152,'Order Form'!$B18,'Macro Breakdown - Meal Prep'!$C$5:$C$152,'Order Form'!$C18) -> 0 | F18: =SUMIFS('Macro Breakdown - Meal Prep'!H$5:H$152,'Macro Breakdown - Meal Prep'!$B$5:$B$152,'Order Form'!$B18,'Macro Breakdown - Meal Prep'!$C$5:$C$152,'Order Form'!$C18) -> 0 | G18: =SUMIFS('Macro Breakdown - Meal Prep'!G$5:G$152,'Macro Breakdown - Meal Prep'!$B$5:$B$152,'Order Form'!$B18,'Macro Breakdown - Meal Prep'!$C$5:$C$152,'Order Form'!$C18) -> 0 | H18: =SUMIFS('Macro Breakdown - Meal Prep'!J$5:J$152,'Macro Breakdown - Meal Prep'!$B$5:$B$152,'Order Form'!$B18,'Macro Breakdown - Meal Prep'!$C$5:$C$152,'Order Form'!$C18) -> 0
D19: =SUMIFS('Macro Breakdown - Meal Prep'!$K:$K,'Macro Breakdown - Meal Prep'!$B:$B,'Order Form'!$B19,'Macro Breakdown - Meal Prep'!$C:$C,'Order Form'!$C19) -> 0 | E19: =SUMIFS('Macro Breakdown - Meal Prep'!I$5:I$152,'Macro Breakdown - Meal Prep'!$B$5:$B$152,'Order Form'!$B19,'Macro Breakdown - Meal Prep'!$C$5:$C$152,'Order Form'!$C19) -> 0 | F19: =SUMIFS('Macro Breakdown - Meal Prep'!H$5:H$152,'Macro Breakdown - Meal Prep'!$B$5:$B$152,'Order Form'!$B19,'Macro Breakdown - Meal Prep'!$C$5:$C$152,'Order Form'!$C19) -> 0 | G19: =SUMIFS('Macro Breakdown - Meal Prep'!G$5:G$152,'Macro Breakdown - Meal Prep'!$B$5:$B$152,'Order Form'!$B19,'Macro Breakdown - Meal Prep'!$C$5:$C$152,'Order Form'!$C19) -> 0 | H19: =SUMIFS('Macro Breakdown - Meal Prep'!J$5:J$152,'Macro Breakdown - Meal Prep'!$B$5:$B$152,'Order Form'!$B19,'Macro Breakdown - Meal Prep'!$C$5:$C$152,'Order Form'!$C19) -> 0
D20: =SUMIFS('Macro Breakdown - Meal Prep'!$K:$K,'Macro Breakdown - Meal Prep'!$B:$B,'Order Form'!$B20,'Macro Breakdown - Meal Prep'!$C:$C,'Order Form'!$C20) -> 0 | E20: =SUMIFS('Macro Breakdown - Meal Prep'!I$5:I$152,'Macro Breakdown - Meal Prep'!$B$5:$B$152,'Order Form'!$B20,'Macro Breakdown - Meal Prep'!$C$5:$C$152,'Order Form'!$C20) -> 0 | F20: =SUMIFS('Macro Breakdown - Meal Prep'!H$5:H$152,'Macro Breakdown - Meal Prep'!$B$5:$B$152,'Order Form'!$B20,'Macro Breakdown - Meal Prep'!$C$5:$C$152,'Order Form'!$C20) -> 0 | G20: =SUMIFS('Macro Breakdown - Meal Prep'!G$5:G$152,'Macro Breakdown - Meal Prep'!$B$5:$B$152,'Order Form'!$B20,'Macro Breakdown - Meal Prep'!$C$5:$C$152,'Order Form'!$C20) -> 0 | H20: =SUMIFS('Macro Breakdown - Meal Prep'!J$5:J$152,'Macro Breakdown - Meal Prep'!$B$5:$B$152,'Order Form'!$B20,'Macro Breakdown - Meal Prep'!$C$5:$C$152,'Order Form'!$C20) -> 0
D21: =SUMIFS('Macro Breakdown - Meal Prep'!$K:$K,'Macro Breakdown - Meal Prep'!$B:$B,'Order Form'!$B21,'Macro Breakdown - Meal Prep'!$C:$C,'Order Form'!$C21) -> 0 | E21: =SUMIFS('Macro Breakdown - Meal Prep'!I$5:I$152,'Macro Breakdown - Meal Prep'!$B$5:$B$152,'Order Form'!$B21,'Macro Breakdown - Meal Prep'!$C$5:$C$152,'Order Form'!$C21) -> 0 | F21: =SUMIFS('Macro Breakdown - Meal Prep'!H$5:H$152,'Macro Breakdown - Meal Prep'!$B$5:$B$152,'Order Form'!$B21,'Macro Breakdown - Meal Prep'!$C$5:$C$152,'Order Form'!$C21) -> 0 | G21: =SUMIFS('Macro Breakdown - Meal Prep'!G$5:G$152,'Macro Breakdown - Meal Prep'!$B$5:$B$152,'Order Form'!$B21,'Macro Breakdown - Meal Prep'!$C$5:$C$152,'Order Form'!$C21) -> 0 | H21: =SUMIFS('Macro Breakdown - Meal Prep'!J$5:J$152,'Macro Breakdown - Meal Prep'!$B$5:$B$152,'Order Form'!$B21,'Macro Breakdown - Meal Prep'!$C$5:$C$152,'Order Form'!$C21) -> 0
D22: =SUMIFS('Macro Breakdown - Meal Prep'!$K:$K,'Macro Breakdown - Meal Prep'!$B:$B,'Order Form'!$B22,'Macro Breakdown - Meal Prep'!$C:$C,'Order Form'!$C22) -> 0 | E22: =SUMIFS('Macro Breakdown - Meal Prep'!I$5:I$152,'Macro Breakdown - Meal Prep'!$B$5:$B$152,'Order Form'!$B22,'Macro Breakdown - Meal Prep'!$C$5:$C$152,'Order Form'!$C22) -> 0 | F22: =SUMIFS('Macro Breakdown - Meal Prep'!H$5:H$152,'Macro Breakdown - Meal Prep'!$B$5:$B$152,'Order Form'!$B22,'Macro Breakdown - Meal Prep'!$C$5:$C$152,'Order Form'!$C22) -> 0 | G22: =SUMIFS('Macro Breakdown - Meal Prep'!G$5:G$152,'Macro Breakdown - Meal Prep'!$B$5:$B$152,'Order Form'!$B22,'Macro Breakdown - Meal Prep'!$C$5:$C$152,'Order Form'!$C22) -> 0 | H22: =SUMIFS('Macro Breakdown - Meal Prep'!J$5:J$152,'Macro Breakdown - Meal Prep'!$B$5:$B$152,'Order Form'!$B22,'Macro Breakdown - Meal Prep'!$C$5:$C$152,'Order Form'!$C22) -> 0
D23: =SUMIFS('Macro Breakdown - Meal Prep'!$K:$K,'Macro Breakdown - Meal Prep'!$B:$B,'Order Form'!$B23,'Macro Breakdown - Meal Prep'!$C:$C,'Order Form'!$C23) -> 0 | E23: =SUMIFS('Macro Breakdown - Meal Prep'!I$5:I$152,'Macro Breakdown - Meal Prep'!$B$5:$B$152,'Order Form'!$B23,'Macro Breakdown - Meal Prep'!$C$5:$C$152,'Order Form'!$C23) -> 0 | F23: =SUMIFS('Macro Breakdown - Meal Prep'!H$5:H$152,'Macro Breakdown - Meal Prep'!$B$5:$B$152,'Order Form'!$B23,'Macro Breakdown - Meal Prep'!$C$5:$C$152,'Order Form'!$C23) -> 0 | G23: =SUMIFS('Macro Breakdown - Meal Prep'!G$5:G$152,'Macro Breakdown - Meal Prep'!$B$5:$B$152,'Order Form'!$B23,'Macro Breakdown - Meal Prep'!$C$5:$C$152,'Order Form'!$C23) -> 0 | H23: =SUMIFS('Macro Breakdown - Meal Prep'!J$5:J$152,'Macro Breakdown - Meal Prep'!$B$5:$B$152,'Order Form'!$B23,'Macro Breakdown - Meal Prep'!$C$5:$C$152,'Order Form'!$C23) -> 0
C24: Total | D24: =SUM($D13:$D23) -> 0 | E24: =SUM(E13:E23) -> 0 | F24: =SUM(F13:F23) -> 0 | G24: 0 | H24: 0
A26: MEAL 2
A27: Use Drop Down Menus to Choose Options | J27: Use Drop Down Menu to Choose Options
A28: Food Type | B28: Food | C28: Portion Size (g) | D28: Price ($) | E28: Protein (g) | F28: Carbs (g) | G28: Fat (g) | H28: Calories | J28: Meal 2 Quantity (Min. 2)
J29: Total Price for Meal 2 | K29: =K28*D40 -> 0
D39: =SUMIFS('Macro Breakdown - Meal Prep'!$K:$K,'Macro Breakdown - Meal Prep'!$B:$B,'Order Form'!$B39,'Macro Breakdown - Meal Prep'!$C:$C,'Order Form'!$C39) -> 0 | E39: =SUMIFS('Macro Breakdown - Meal Prep'!I$5:I$152,'Macro Breakdown - Meal Prep'!$B$5:$B$152,'Order Form'!$B39,'Macro Breakdown - Meal Prep'!$C$5:$C$152,'Order Form'!$C39) -> 0 | F39: =SUMIFS('Macro Breakdown - Meal Prep'!H$5:H$152,'Macro Breakdown - Meal Prep'!$B$5:$B$152,'Order Form'!$B39,'Macro Breakdown - Meal Prep'!$C$5:$C$152,'Order Form'!$C39) -> 0 | G39: =SUMIFS('Macro Breakdown - Meal Prep'!G$5:G$152,'Macro Breakdown - Meal Prep'!$B$5:$B$152,'Order Form'!$B39,'Macro Breakdown - Meal Prep'!$C$5:$C$152,'Order Form'!$C39) -> 0 | H39: =SUMIFS('Macro Breakdown - Meal Prep'!J$5:J$152,'Macro Breakdown - Meal Prep'!$B$5:$B$152,'Order Form'!$B39,'Macro Breakdown - Meal Prep'!$C$5:$C$152,'Order Form'!$C39) -> 0
C40: Total | D40: =SUM($D29:$D39) -> 0 | E40: =SUM(E29:E39) -> 0 | F40: =SUM(F29:F39) -> 0 | G40: 0 | H40: 0
A42: MEAL 2
A43: Use Drop Down Menus to Choose Options | J43: Use Drop Down Menu to Choose Options
A44: Food Type | B44: Food | C44: Portion Size (g) | D44: Price ($) | E44: Protein (g) | F44: Carbs (g) | G44: Fat (g) | H44: Calories | J44: Meal 3 Quantity (Min. 2)
A45: Protein | D45: =SUMIFS('Macro Breakdown - Meal Prep'!$K:$K,'Macro Breakdown - Meal Prep'!$B:$B,'Order Form'!$B45,'Macro Breakdown - Meal Prep'!$C:$C,'Order Form'!$C45) -> 0 | E45: =SUMIFS('Macro Breakdown - Meal Prep'!I$5:I$152,'Macro Breakdown - Meal Prep'!$B$5:$B$152,'Order Form'!$B45,'Macro Breakdown - Meal Prep'!$C$5:$C$152,'Order Form'!$C45) -> 0 | F45: =SUMIFS('Macro Breakdown - Meal Prep'!H$5:H$152,'Macro Breakdown - Meal Prep'!$B$5:$B$152,'Order Form'!$B45,'Macro Breakdown - Meal Prep'!$C$5:$C$152,'Order Form'!$C45) -> 0 | G45: =SUMIFS('Macro Breakdown - Meal Prep'!G$5:G$152,'Macro Breakdown - Meal Prep'!$B$5:$B$152,'Order Form'!$B45,'Macro Breakdown - Meal Prep'!$C$5:$C$152,'Order Form'!$C45) -> 0 | H45: =SUMIFS('Macro Breakdown - Meal Prep'!J$5:J$152,'Macro Breakdown - Meal Prep'!$B$5:$B$152,'Order Form'!$B45,'Macro Breakdown - Meal Prep'!$C$5:$C$152,'Order Form'!$C45) -> 0 | J45: Total Price for Meal 3 | K45: =K44*D56 -> 0
D46: =SUMIFS('Macro Breakdown - Meal Prep'!$K:$K,'Macro Breakdown - Meal Prep'!$B:$B,'Order Form'!$B46,'Macro Breakdown - Meal Prep'!$C:$C,'Order Form'!$C46) -> 0 | E46: =SUMIFS('Macro Breakdown - Meal Prep'!I$5:I$152,'Macro Breakdown - Meal Prep'!$B$5:$B$152,'Order Form'!$B46,'Macro Breakdown - Meal Prep'!$C$5:$C$152,'Order Form'!$C46) -> 0 | F46: =SUMIFS('Macro Breakdown - Meal Prep'!H$5:H$152,'Macro Breakdown - Meal Prep'!$B$5:$B$152,'Order Form'!$B46,'Macro Breakdown - Meal Prep'!$C$5:$C$152,'Order Form'!$C46) -> 0 | G46: =SUMIFS('Macro Breakdown - Meal Prep'!G$5:G$152,'Macro Breakdown - Meal Prep'!$B$5:$B$152,'Order Form'!$B46,'Macro Breakdown - Meal Prep'!$C$5:$C$152,'Order Form'!$C46) -> 0 | H46: =SUMIFS('Macro Breakdown - Meal Prep'!J$5:J$152,'Macro Breakdown - Meal Prep'!$B$5:$B$152,'Order Form'!$B46,'Macro Breakdown - Meal Prep'!$C$5:$C$152,'Order Form'!$C46) -> 0
D47: =SUMIFS('Macro Breakdown - Meal Prep'!$K:$K,'Macro Breakdown - Meal Prep'!$B:$B,'Order Form'!$B47,'Macro Breakdown - Meal Prep'!$C:$C,'Order Form'!$C47) -> 0 | E47: =SUMIFS('Macro Breakdown - Meal Prep'!I$5:I$152,'Macro Breakdown - Meal Prep'!$B$5:$B$152,'Order Form'!$B47,'Macro Breakdown - Meal Prep'!$C$5:$C$152,'Order Form'!$C47) -> 0 | F47: =SUMIFS('Macro Breakdown - Meal Prep'!H$5:H$152,'Macro Breakdown - Meal Prep'!$B$5:$B$152,'Order Form'!$B47,'Macro Breakdown - Meal Prep'!$C$5:$C$152,'Order Form'!$C47) -> 0 | G47: =SUMIFS('Macro Breakdown - Meal Prep'!G$5:G$152,'Macro Breakdown - Meal Prep'!$B$5:$B$152,'Order Form'!$B47,'Macro Breakdown - Meal Prep'!$C$5:$C$152,'Order Form'!$C47) -> 0 | H47: =SUMIFS('Macro Breakdown - Meal Prep'!J$5:J$152,'Macro Breakdown - Meal Prep'!$B$5:$B$152,'Order Form'!$B47,'Macro Breakdown - Meal Prep'!$C$5:$C$152,'Order Form'!$C47) -> 0
D48: =SUMIFS('Macro Breakdown - Meal Prep'!$K:$K,'Macro Breakdown - Meal Prep'!$B:$B,'Order Form'!$B48,'Macro Breakdown - Meal Prep'!$C:$C,'Order Form'!$C48) -> 0 | E48: =SUMIFS('Macro Breakdown - Meal Prep'!I$5:I$152,'Macro Breakdown - Meal Prep'!$B$5:$B$152,'Order Form'!$B48,'Macro Breakdown - Meal Prep'!$C$5:$C$152,'Order Form'!$C48) -> 0 | F48: =SUMIFS('Macro Breakdown - Meal Prep'!H$5:H$152,'Macro Breakdown - Meal Prep'!$B$5:$B$152,'Order Form'!$B48,'Macro Breakdown - Meal Prep'!$C$5:$C$152,'Order Form'!$C48) -> 0 | G48: =SUMIFS('Macro Breakdown - Meal Prep'!G$5:G$152,'Macro Breakdown - Meal Prep'!$B$5:$B$152,'Order Form'!$B48,'Macro Breakdown - Meal Prep'!$C$5:$C$152,'Order Form'!$C48) -> 0 | H48: =SUMIFS('Macro Breakdown - Meal Prep'!J$5:J$152,'Macro Breakdown - Meal Prep'!$B$5:$B$152,'Order Form'!$B48,'Macro Breakdown - Meal Prep'!$C$5:$C$152,'Order Form'!$C48) -> 0
D49: =SUMIFS('Macro Breakdown - Meal Prep'!$K:$K,'Macro Breakdown - Meal Prep'!$B:$B,'Order Form'!$B49,'Macro Breakdown - Meal Prep'!$C:$C,'Order Form'!$C49) -> 0 | E49: =SUMIFS('Macro Breakdown - Meal Prep'!I$5:I$152,'Macro Breakdown - Meal Prep'!$B$5:$B$152,'Order Form'!$B49,'Macro Breakdown - Meal Prep'!$C$5:$C$152,'Order Form'!$C49) -> 0 | F49: =SUMIFS('Macro Breakdown - Meal Prep'!H$5:H$152,'Macro Breakdown - Meal Prep'!$B$5:$B$152,'Order Form'!$B49,'Macro Breakdown - Meal Prep'!$C$5:$C$152,'Order Form'!$C49) -> 0 | G49: =SUMIFS('Macro Breakdown - Meal Prep'!G$5:G$152,'Macro Breakdown - Meal Prep'!$B$5:$B$152,'Order Form'!$B49,'Macro Breakdown - Meal Prep'!$C$5:$C$152,'Order Form'!$C49) -> 0 | H49: =SUMIFS('Macro Breakdown - Meal Prep'!J$5:J$152,'Macro Breakdown - Meal Prep'!$B$5:$B$152,'Order Form'!$B49,'Macro Breakdown - Meal Prep'!$C$5:$C$152,'Order Form'!$C49) -> 0
D50: =SUMIFS('Macro Breakdown - Meal Prep'!$K:$K,'Macro Breakdown - Meal Prep'!$B:$B,'Order Form'!$B50,'Macro Breakdown - Meal Prep'!$C:$C,'Order Form'!$C50) -> 0 | E50: =SUMIFS('Macro Breakdown - Meal Prep'!I$5:I$152,'Macro Breakdown - Meal Prep'!$B$5:$B$152,'Order Form'!$B50,'Macro Breakdown - Meal Prep'!$C$5:$C$152,'Order Form'!$C50) -> 0 | F50: =SUMIFS('Macro Breakdown - Meal Prep'!H$5:H$152,'Macro Breakdown - Meal Prep'!$B$5:$B$152,'Order Form'!$B50,'Macro Breakdown - Meal Prep'!$C$5:$C$152,'Order Form'!$C50) -> 0 | G50: =SUMIFS('Macro Breakdown - Meal Prep'!G$5:G$152,'Macro Breakdown - Meal Prep'!$B$5:$B$152,'Order Form'!$B50,'Macro Breakdown - Meal Prep'!$C$5:$C$152,'Order Form'!$C50) -> 0 | H50: =SUMIFS('Macro Breakdown - Meal Prep'!J$5:J$152,'Macro Breakdown - Meal Prep'!$B$5:$B$152,'Order Form'!$B50,'Macro Breakdown - Meal Prep'!$C$5:$C$152,'Order Form'!$C50) -> 0
D51: =SUMIFS('Macro Breakdown - Meal Prep'!$K:$K,'Macro Breakdown - Meal Prep'!$B:$B,'Order Form'!$B51,'Macro Breakdown - Meal Prep'!$C:$C,'Order Form'!$C51) -> 0 | E51: =SUMIFS('Macro Breakdown - Meal Prep'!I$5:I$152,'Macro Breakdown - Meal Prep'!$B$5:$B$152,'Order Form'!$B51,'Macro Breakdown - Meal Prep'!$C$5:$C$152,'Order Form'!$C51) -> 0 | F51: =SUMIFS('Macro Breakdown - Meal Prep'!H$5:H$152,'Macro Breakdown - Meal Prep'!$B$5:$B$152,'Order Form'!$B51,'Macro Breakdown - Meal Prep'!$C$5:$C$152,'Order Form'!$C51) -> 0 | G51: =SUMIFS('Macro Breakdown - Meal Prep'!G$5:G$152,'Macro Breakdown - Meal Prep'!$B$5:$B$152,'Order Form'!$B51,'Macro Breakdown - Meal Prep'!$C$5:$C$152,'Order Form'!$C51) -> 0 | H51: =SUMIFS('Macro Breakdown - Meal Prep'!J$5:J$152,'Macro Breakdown - Meal Prep'!$B$5:$B$152,'Order Form'!$B51,'Macro Breakdown - Meal Prep'!$C$5:$C$152,'Order Form'!$C51) -> 0
D52: =SUMIFS('Macro Breakdown - Meal Prep'!$K:$K,'Macro Breakdown - Meal Prep'!$B:$B,'Order Form'!$B52,'Macro Breakdown - Meal Prep'!$C:$C,'Order Form'!$C52) -> 0 | E52: =SUMIFS('Macro Breakdown - Meal Prep'!I$5:I$152,'Macro Breakdown - Meal Prep'!$B$5:$B$152,'Order Form'!$B52,'Macro Breakdown - Meal Prep'!$C$5:$C$152,'Order Form'!$C52) -> 0 | F52: =SUMIFS('Macro Breakdown - Meal Prep'!H$5:H$152,'Macro Breakdown - Meal Prep'!$B$5:$B$152,'Order Form'!$B52,'Macro Breakdown - Meal Prep'!$C$5:$C$152,'Order Form'!$C52) -> 0 | G52: =SUMIFS('Macro Breakdown - Meal Prep'!G$5:G$152,'Macro Breakdown - Meal Prep'!$B$5:$B$152,'Order Form'!$B52,'Macro Breakdown - Meal Prep'!$C$5:$C$152,'Order Form'!$C52) -> 0 | H52: =SUMIFS('Macro Breakdown - Meal Prep'!J$5:J$152,'Macro Breakdown - Meal Prep'!$B$5:$B$152,'Order Form'!$B52,'Macro Breakdown - Meal Prep'!$C$5:$C$152,'Order Form'!$C52) -> 0
D53: =SUMIFS('Macro Breakdown - Meal Prep'!$K:$K,'Macro Breakdown - Meal Prep'!$B:$B,'Order Form'!$B53,'Macro Breakdown - Meal Prep'!$C:$C,'Order Form'!$C53) -> 0 | E53: =SUMIFS('Macro Breakdown - Meal Prep'!I$5:I$152,'Macro Breakdown - Meal Prep'!$B$5:$B$152,'Order Form'!$B53,'Macro Breakdown - Meal Prep'!$C$5:$C$152,'Order Form'!$C53) -> 0 | F53: =SUMIFS('Macro Breakdown - Meal Prep'!H$5:H$152,'Macro Breakdown - Meal Prep'!$B$5:$B$152,'Order Form'!$B53,'Macro Breakdown - Meal Prep'!$C$5:$C$152,'Order Form'!$C53) -> 0 | G53: =SUMIFS('Macro Breakdown - Meal Prep'!G$5:G$152,'Macro Breakdown - Meal Prep'!$B$5:$B$152,'Order Form'!$B53,'Macro Breakdown - Meal Prep'!$C$5:$C$152,'Order Form'!$C53) -> 0 | H53: =SUMIFS('Macro Breakdown - Meal Prep'!J$5:J$152,'Macro Breakdown - Meal Prep'!$B$5:$B$152,'Order Form'!$B53,'Macro Breakdown - Meal Prep'!$C$5:$C$152,'Order Form'!$C53) -> 0
D54: =SUMIFS('Macro Breakdown - Meal Prep'!$K:$K,'Macro Breakdown - Meal Prep'!$B:$B,'Order Form'!$B54,'Macro Breakdown - Meal Prep'!$C:$C,'Order Form'!$C54) -> 0 | E54: =SUMIFS('Macro Breakdown - Meal Prep'!I$5:I$152,'Macro Breakdown - Meal Prep'!$B$5:$B$152,'Order Form'!$B54,'Macro Breakdown - Meal Prep'!$C$5:$C$152,'Order Form'!$C54) -> 0 | F54: =SUMIFS('Macro Breakdown - Meal Prep'!H$5:H$152,'Macro Breakdown - Meal Prep'!$B$5:$B$152,'Order Form'!$B54,'Macro Breakdown - Meal Prep'!$C$5:$C$152,'Order Form'!$C54) -> 0 | G54: =SUMIFS('Macro Breakdown - Meal Prep'!G$5:G$152,'Macro Breakdown - Meal Prep'!$B$5:$B$152,'Order Form'!$B54,'Macro Breakdown - Meal Prep'!$C$5:$C$152,'Order Form'!$C54) -> 0 | H54: =SUMIFS('Macro Breakdown - Meal Prep'!J$5:J$152,'Macro Breakdown - Meal Prep'!$B$5:$B$152,'Order Form'!$B54,'Macro Breakdown - Meal Prep'!$C$5:$C$152,'Order Form'!$C54) -> 0
D55: =SUMIFS('Macro Breakdown - Meal Prep'!$K:$K,'Macro Breakdown - Meal Prep'!$B:$B,'Order Form'!$B55,'Macro Breakdown - Meal Prep'!$C:$C,'Order Form'!$C55) -> 0 | E55: =SUMIFS('Macro Breakdown - Meal Prep'!I$5:I$152,'Macro Breakdown - Meal Prep'!$B$5:$B$152,'Order Form'!$B55,'Macro Breakdown - Meal Prep'!$C$5:$C$152,'Order Form'!$C55) -> 0 | F55: =SUMIFS('Macro Breakdown - Meal Prep'!H$5:H$152,'Macro Breakdown - Meal Prep'!$B$5:$B$152,'Order Form'!$B55,'Macro Breakdown - Meal Prep'!$C$5:$C$152,'Order Form'!$C55) -> 0 | G55: =SUMIFS('Macro Breakdown - Meal Prep'!G$5:G$152,'Macro Breakdown - Meal Prep'!$B$5:$B$152,'Order Form'!$B55,'Macro Breakdown - Meal Prep'!$C$5:$C$152,'Order Form'!$C55) -> 0 | H55: =SUMIFS('Macro Breakdown - Meal Prep'!J$5:J$152,'Macro Breakdown - Meal Prep'!$B$5:$B$152,'Order Form'!$B55,'Macro Breakdown - Meal Prep'!$C$5:$C$152,'Order Form'!$C55) -> 0
C56: Total | D56: =SUM($D45:$D55) -> 0 | E56: =SUM(E45:E55) -> 0 | F56: =SUM(F45:F55) -> 0 | G56: 0 | H56: 0
A58: MEAL 3
A59: Use Drop Down Menus to Choose Options | J59: Use Drop Down Menu to Choose Options
A60: Food Type | B60: Food | C60: Portion Size (g) | D60: Price ($) | E60: Protein (g) | F60: Carbs (g) | G60: Fat (g) | H60: Calories | J60: Meal 4 Quantity (Min. 2)
D61: =SUMIFS('Macro Breakdown - Meal Prep'!$K:$K,'Macro Breakdown - Meal Prep'!$B:$B,'Order Form'!$B61,'Macro Breakdown - Meal Prep'!$C:$C,'Order Form'!$C61) -> 0 | E61: =SUMIFS('Macro Breakdown - Meal Prep'!I$5:I$152,'Macro Breakdown - Meal Prep'!$B$5:$B$152,'Order Form'!$B61,'Macro Breakdown - Meal Prep'!$C$5:$C$152,'Order Form'!$C61) -> 0 | F61: =SUMIFS('Macro Breakdown - Meal Prep'!H$5:H$152,'Macro Breakdown - Meal Prep'!$B$5:$B$152,'Order Form'!$B61,'Macro Breakdown - Meal Prep'!$C$5:$C$152,'Order Form'!$C61) -> 0 | G61: =SUMIFS('Macro Breakdown - Meal Prep'!G$5:G$152,'Macro Breakdown - Meal Prep'!$B$5:$B$152,'Order Form'!$B61,'Macro Breakdown - Meal Prep'!$C$5:$C$152,'Order Form'!$C61) -> 0 | H61: =SUMIFS('Macro Breakdown - Meal Prep'!J$5:J$152,'Macro Breakdown - Meal Prep'!$B$5:$B$152,'Order Form'!$B61,'Macro Breakdown - Meal Prep'!$C$5:$C$152,'Order Form'!$C61) -> 0 | J61: Total Price for Meal 4 | K61: =K60*D72 -> 0
D62: =SUMIFS('Macro Breakdown - Meal Prep'!$K:$K,'Macro Breakdown - Meal Prep'!$B:$B,'Order Form'!$B62,'Macro Breakdown - Meal Prep'!$C:$C,'Order Form'!$C62) -> 0 | E62: =SUMIFS('Macro Breakdown - Meal Prep'!I$5:I$152,'Macro Breakdown - Meal Prep'!$B$5:$B$152,'Order Form'!$B62,'Macro Breakdown - Meal Prep'!$C$5:$C$152,'Order Form'!$C62) -> 0 | F62: =SUMIFS('Macro Breakdown - Meal Prep'!H$5:H$152,'Macro Breakdown - Meal Prep'!$B$5:$B$152,'Order Form'!$B62,'Macro Breakdown - Meal Prep'!$C$5:$C$152,'Order Form'!$C62) -> 0 | G62: =SUMIFS('Macro Breakdown - Meal Prep'!G$5:G$152,'Macro Breakdown - Meal Prep'!$B$5:$B$152,'Order Form'!$B62,'Macro Breakdown - Meal Prep'!$C$5:$C$152,'Order Form'!$C62) -> 0 | H62: =SUMIFS('Macro Breakdown - Meal Prep'!J$5:J$152,'Macro Breakdown - Meal Prep'!$B$5:$B$152,'Order Form'!$B62,'Macro Breakdown - Meal Prep'!$C$5:$C$152,'Order Form'!$C62) -> 0
D63: =SUMIFS('Macro Breakdown - Meal Prep'!$K:$K,'Macro Breakdown - Meal Prep'!$B:$B,'Order Form'!$B63,'Macro Breakdown - Meal Prep'!$C:$C,'Order Form'!$C63) -> 0 | E63: =SUMIFS('Macro Breakdown - Meal Prep'!I$5:I$152,'Macro Breakdown - Meal Prep'!$B$5:$B$152,'Order Form'!$B63,'Macro Breakdown - Meal Prep'!$C$5:$C$152,'Order Form'!$C63) -> 0 | F63: =SUMIFS('Macro Breakdown - Meal Prep'!H$5:H$152,'Macro Breakdown - Meal Prep'!$B$5:$B$152,'Order Form'!$B63,'Macro Breakdown - Meal Prep'!$C$5:$C$152,'Order Form'!$C63) -> 0 | G63: =SUMIFS('Macro Breakdown - Meal Prep'!G$5:G$152,'Macro Breakdown - Meal Prep'!$B$5:$B$152,'Order Form'!$B63,'Macro Breakdown - Meal Prep'!$C$5:$C$152,'Order Form'!$C63) -> 0 | H63: =SUMIFS('Macro Breakdown - Meal Prep'!J$5:J$152,'Macro Breakdown - Meal Prep'!$B$5:$B$152,'Order Form'!$B63,'Macro Breakdown - Meal Prep'!$C$5:$C$152,'Order Form'!$C63) -> 0
D64: =SUMIFS('Macro Breakdown - Meal Prep'!$K:$K,'Macro Breakdown - Meal Prep'!$B:$B,'Order Form'!$B64,'Macro Breakdown - Meal Prep'!$C:$C,'Order Form'!$C64) -> 0 | E64: =SUMIFS('Macro Breakdown - Meal Prep'!I$5:I$152,'Macro Breakdown - Meal Prep'!$B$5:$B$152,'Order Form'!$B64,'Macro Breakdown - Meal Prep'!$C$5:$C$152,'Order Form'!$C64) -> 0 | F64: =SUMIFS('Macro Breakdown - Meal Prep'!H$5:H$152,'Macro Breakdown - Meal Prep'!$B$5:$B$152,'Order Form'!$B64,'Macro Breakdown - Meal Prep'!$C$5:$C$152,'Order Form'!$C64) -> 0 | G64: =SUMIFS('Macro Breakdown - Meal Prep'!G$5:G$152,'Macro Breakdown - Meal Prep'!$B$5:$B$152,'Order Form'!$B64,'Macro Breakdown - Meal Prep'!$C$5:$C$152,'Order Form'!$C64) -> 0 | H64: =SUMIFS('Macro Breakdown - Meal Prep'!J$5:J$152,'Macro Breakdown - Meal Prep'!$B$5:$B$152,'Order Form'!$B64,'Macro Breakdown - Meal Prep'!$C$5:$C$152,'Order Form'!$C64) -> 0
D65: =SUMIFS('Macro Breakdown - Meal Prep'!$K:$K,'Macro Breakdown - Meal Prep'!$B:$B,'Order Form'!$B65,'Macro Breakdown - Meal Prep'!$C:$C,'Order Form'!$C65) -> 0 | E65: =SUMIFS('Macro Breakdown - Meal Prep'!I$5:I$152,'Macro Breakdown - Meal Prep'!$B$5:$B$152,'Order Form'!$B65,'Macro Breakdown - Meal Prep'!$C$5:$C$152,'Order Form'!$C65) -> 0 | F65: =SUMIFS('Macro Breakdown - Meal Prep'!H$5:H$152,'Macro Breakdown - Meal Prep'!$B$5:$B$152,'Order Form'!$B65,'Macro Breakdown - Meal Prep'!$C$5:$C$152,'Order Form'!$C65) -> 0 | G65: =SUMIFS('Macro Breakdown - Meal Prep'!G$5:G$152,'Macro Breakdown - Meal Prep'!$B$5:$B$152,'Order Form'!$B65,'Macro Breakdown - Meal Prep'!$C$5:$C$152,'Order Form'!$C65) -> 0 | H65: =SUMIFS('Macro Breakdown - Meal Prep'!J$5:J$152,'Macro Breakdown - Meal Prep'!$B$5:$B$152,'Order Form'!$B65,'Macro Breakdown - Meal Prep'!$C$5:$C$152,'Order Form'!$C65) -> 0
D66: =SUMIFS('Macro Breakdown - Meal Prep'!$K:$K,'Macro Breakdown - Meal Prep'!$B:$B,'Order Form'!$B66,'Macro Breakdown - Meal Prep'!$C:$C,'Order Form'!$C66) -> 0 | E66: =SUMIFS('Macro Breakdown - Meal Prep'!I$5:I$152,'Macro Breakdown - Meal Prep'!$B$5:$B$152,'Order Form'!$B66,'Macro Breakdown - Meal Prep'!$C$5:$C$152,'Order Form'!$C66) -> 0 | F66: =SUMIFS('Macro Breakdown - Meal Prep'!H$5:H$152,'Macro Breakdown - Meal Prep'!$B$5:$B$152,'Order Form'!$B66,'Macro Breakdown - Meal Prep'!$C$5:$C$152,'Order Form'!$C66) -> 0 | G66: =SUMIFS('Macro Breakdown - Meal Prep'!G$5:G$152,'Macro Breakdown - Meal Prep'!$B$5:$B$152,'Order Form'!$B66,'Macro Breakdown - Meal Prep'!$C$5:$C$152,'Order Form'!$C66) -> 0 | H66: =SUMIFS('Macro Breakdown - Meal Prep'!J$5:J$152,'Macro Breakdown - Meal Prep'!$B$5:$B$152,'Order Form'!$B66,'Macro Breakdown - Meal Prep'!$C$5:$C$152,'Order Form'!$C66) -> 0
D67: =SUMIFS('Macro Breakdown - Meal Prep'!$K:$K,'Macro Breakdown - Meal Prep'!$B:$B,'Order Form'!$B67,'Macro Breakdown - Meal Prep'!$C:$C,'Order Form'!$C67) -> 0 | E67: =SUMIFS('Macro Breakdown - Meal Prep'!I$5:I$152,'Macro Breakdown - Meal Prep'!$B$5:$B$152,'Order Form'!$B67,'Macro Breakdown - Meal Prep'!$C$5:$C$152,'Order Form'!$C67) -> 0 | F67: =SUMIFS('Macro Breakdown - Meal Prep'!H$5:H$152,'Macro Breakdown - Meal Prep'!$B$5:$B$152,'Order Form'!$B67,'Macro Breakdown - Meal Prep'!$C$5:$C$152,'Order Form'!$C67) -> 0 | G67: =SUMIFS('Macro Breakdown - Meal Prep'!G$5:G$152,'Macro Breakdown - Meal Prep'!$B$5:$B$152,'Order Form'!$B67,'Macro Breakdown - Meal Prep'!$C$5:$C$152,'Order Form'!$C67) -> 0 | H67: =SUMIFS('Macro Breakdown - Meal Prep'!J$5:J$152,'Macro Breakdown - Meal Prep'!$B$5:$B$152,'Order Form'!$B67,'Macro Breakdown - Meal Prep'!$C$5:$C$152,'Order Form'!$C67) -> 0
D68: =SUMIFS('Macro Breakdown - Meal Prep'!$K:$K,'Macro Breakdown - Meal Prep'!$B:$B,'Order Form'!$B68,'Macro Breakdown - Meal Prep'!$C:$C,'Order Form'!$C68) -> 0 | E68: =SUMIFS('Macro Breakdown - Meal Prep'!I$5:I$152,'Macro Breakdown - Meal Prep'!$B$5:$B$152,'Order Form'!$B68,'Macro Breakdown - Meal Prep'!$C$5:$C$152,'Order Form'!$C68) -> 0 | F68: =SUMIFS('Macro Breakdown - Meal Prep'!H$5:H$152,'Macro Breakdown - Meal Prep'!$B$5:$B$152,'Order Form'!$B68,'Macro Breakdown - Meal Prep'!$C$5:$C$152,'Order Form'!$C68) -> 0 | G68: =SUMIFS('Macro Breakdown - Meal Prep'!G$5:G$152,'Macro Breakdown - Meal Prep'!$B$5:$B$152,'Order Form'!$B68,'Macro Breakdown - Meal Prep'!$C$5:$C$152,'Order Form'!$C68) -> 0 | H68: =SUMIFS('Macro Breakdown - Meal Prep'!J$5:J$152,'Macro Breakdown - Meal Prep'!$B$5:$B$152,'Order Form'!$B68,'Macro Breakdown - Meal Prep'!$C$5:$C$152,'Order Form'!$C68) -> 0
D69: =SUMIFS('Macro Breakdown - Meal Prep'!$K:$K,'Macro Breakdown - Meal Prep'!$B:$B,'Order Form'!$B69,'Macro Breakdown - Meal Prep'!$C:$C,'Order Form'!$C69) -> 0 | E69: =SUMIFS('Macro Breakdown - Meal Prep'!I$5:I$152,'Macro Breakdown - Meal Prep'!$B$5:$B$152,'Order Form'!$B69,'Macro Breakdown - Meal Prep'!$C$5:$C$152,'Order Form'!$C69) -> 0 | F69: =SUMIFS('Macro Breakdown - Meal Prep'!H$5:H$152,'Macro Breakdown - Meal Prep'!$B$5:$B$152,'Order Form'!$B69,'Macro Breakdown - Meal Prep'!$C$5:$C$152,'Order Form'!$C69) -> 0 | G69: =SUMIFS('Macro Breakdown - Meal Prep'!G$5:G$152,'Macro Breakdown - Meal Prep'!$B$5:$B$152,'Order Form'!$B69,'Macro Breakdown - Meal Prep'!$C$5:$C$152,'Order Form'!$C69) -> 0 | H69: =SUMIFS('Macro Breakdown - Meal Prep'!J$5:J$152,'Macro Breakdown - Meal Prep'!$B$5:$B$152,'Order Form'!$B69,'Macro Breakdown - Meal Prep'!$C$5:$C$152,'Order Form'!$C69) -> 0
D70: =SUMIFS('Macro Breakdown - Meal Prep'!$K:$K,'Macro Breakdown - Meal Prep'!$B:$B,'Order Form'!$B70,'Macro Breakdown - Meal Prep'!$C:$C,'Order Form'!$C70) -> 0 | E70: =SUMIFS('Macro Breakdown - Meal Prep'!I$5:I$152,'Macro Breakdown - Meal Prep'!$B$5:$B$152,'Order Form'!$B70,'Macro Breakdown - Meal Prep'!$C$5:$C$152,'Order Form'!$C70) -> 0 | F70: =SUMIFS('Macro Breakdown - Meal Prep'!H$5:H$152,'Macro Breakdown - Meal Prep'!$B$5:$B$152,'Order Form'!$B70,'Macro Breakdown - Meal Prep'!$C$5:$C$152,'Order Form'!$C70) -> 0 | G70: =SUMIFS('Macro Breakdown - Meal Prep'!G$5:G$152,'Macro Breakdown - Meal Prep'!$B$5:$B$152,'Order Form'!$B70,'Macro Breakdown - Meal Prep'!$C$5:$C$152,'Order Form'!$C70) -> 0 | H70: =SUMIFS('Macro Breakdown - Meal Prep'!J$5:J$152,'Macro Breakdown - Meal Prep'!$B$5:$B$152,'Order Form'!$B70,'Macro Breakdown - Meal Prep'!$C$5:$C$152,'Order Form'!$C70) -> 0
D71: =SUMIFS('Macro Breakdown - Meal Prep'!$K:$K,'Macro Breakdown - Meal Prep'!$B:$B,'Order Form'!$B71,'Macro Breakdown - Meal Prep'!$C:$C,'Order Form'!$C71) -> 0 | E71: =SUMIFS('Macro Breakdown - Meal Prep'!I$5:I$152,'Macro Breakdown - Meal Prep'!$B$5:$B$152,'Order Form'!$B71,'Macro Breakdown - Meal Prep'!$C$5:$C$152,'Order Form'!$C71) -> 0 | F71: =SUMIFS('Macro Breakdown - Meal Prep'!H$5:H$152,'Macro Breakdown - Meal Prep'!$B$5:$B$152,'Order Form'!$B71,'Macro Breakdown - Meal Prep'!$C$5:$C$152,'Order Form'!$C71) -> 0 | G71: =SUMIFS('Macro Breakdown - Meal Prep'!G$5:G$152,'Macro Breakdown - Meal Prep'!$B$5:$B$152,'Order Form'!$B71,'Macro Breakdown - Meal Prep'!$C$5:$C$152,'Order Form'!$C71) -> 0 | H71: =SUMIFS('Macro Breakdown - Meal Prep'!J$5:J$152,'Macro Breakdown - Meal Prep'!$B$5:$B$152,'Order Form'!$B71,'Macro Breakdown - Meal Prep'!$C$5:$C$152,'Order Form'!$C71) -> 0
C72: Total | D72: =SUM($D61:$D71) -> 0 | E72: =SUM(E61:E71) -> 0 | F72: =SUM(F61:F71) -> 0 | G72: 0 | H72: 0
A74: MEAL 4
A75: Use Drop Down Menus to Choose Options | J75: Use Drop Down Menu to Choose Options
A76: Food Type | B76: Food | C76: Portion Size (g) | D76: Price ($) | E76: Protein (g) | F76: Carbs (g) | G76: Fat (g) | H76: Calories | J76: Meal 5 Quantity (Min. 2)
D77: =SUMIFS('Macro Breakdown - Meal Prep'!$K:$K,'Macro Breakdown - Meal Prep'!$B:$B,'Order Form'!$B77,'Macro Breakdown - Meal Prep'!$C:$C,'Order Form'!$C77) -> 0 | E77: =SUMIFS('Macro Breakdown - Meal Prep'!I$5:I$152,'Macro Breakdown - Meal Prep'!$B$5:$B$152,'Order Form'!$B77,'Macro Breakdown - Meal Prep'!$C$5:$C$152,'Order Form'!$C77) -> 0 | F77: =SUMIFS('Macro Breakdown - Meal Prep'!H$5:H$152,'Macro Breakdown - Meal Prep'!$B$5:$B$152,'Order Form'!$B77,'Macro Breakdown - Meal Prep'!$C$5:$C$152,'Order Form'!$C77) -> 0 | G77: =SUMIFS('Macro Breakdown - Meal Prep'!G$5:G$152,'Macro Breakdown - Meal Prep'!$B$5:$B$152,'Order Form'!$B77,'Macro Breakdown - Meal Prep'!$C$5:$C$152,'Order Form'!$C77) -> 0 | H77: =SUMIFS('Macro Breakdown - Meal Prep'!J$5:J$152,'Macro Breakdown - Meal Prep'!$B$5:$B$152,'Order Form'!$B77,'Macro Breakdown - Meal Prep'!$C$5:$C$152,'Order Form'!$C77) -> 0 | J77: Total Price for Meal 5 | K77: =K76*D88 -> 0
D78: =SUMIFS('Macro Breakdown - Meal Prep'!$K:$K,'Macro Breakdown - Meal Prep'!$B:$B,'Order Form'!$B78,'Macro Breakdown - Meal Prep'!$C:$C,'Order Form'!$C78) -> 0 | E78: =SUMIFS('Macro Breakdown - Meal Prep'!I$5:I$152,'Macro Breakdown - Meal Prep'!$B$5:$B$152,'Order Form'!$B78,'Macro Breakdown - Meal Prep'!$C$5:$C$152,'Order Form'!$C78) -> 0 | F78: =SUMIFS('Macro Breakdown - Meal Prep'!H$5:H$152,'Macro Breakdown - Meal Prep'!$B$5:$B$152,'Order Form'!$B78,'Macro Breakdown - Meal Prep'!$C$5:$C$152,'Order Form'!$C78) -> 0 | G78: =SUMIFS('Macro Breakdown - Meal Prep'!G$5:G$152,'Macro Breakdown - Meal Prep'!$B$5:$B$152,'Order Form'!$B78,'Macro Breakdown - Meal Prep'!$C$5:$C$152,'Order Form'!$C78) -> 0 | H78: =SUMIFS('Macro Breakdown - Meal Prep'!J$5:J$152,'Macro Breakdown - Meal Prep'!$B$5:$B$152,'Order Form'!$B78,'Macro Breakdown - Meal Prep'!$C$5:$C$152,'Order Form'!$C78) -> 0
D79: =SUMIFS('Macro Breakdown - Meal Prep'!$K:$K,'Macro Breakdown - Meal Prep'!$B:$B,'Order Form'!$B79,'Macro Breakdown - Meal Prep'!$C:$C,'Order Form'!$C79) -> 0 | E79: =SUMIFS('Macro Breakdown - Meal Prep'!I$5:I$152,'Macro Breakdown - Meal Prep'!$B$5:$B$152,'Order Form'!$B79,'Macro Breakdown - Meal Prep'!$C$5:$C$152,'Order Form'!$C79) -> 0 | F79: =SUMIFS('Macro Breakdown - Meal Prep'!H$5:H$152,'Macro Breakdown - Meal Prep'!$B$5:$B$152,'Order Form'!$B79,'Macro Breakdown - Meal Prep'!$C$5:$C$152,'Order Form'!$C79) -> 0 | G79: =SUMIFS('Macro Breakdown - Meal Prep'!G$5:G$152,'Macro Breakdown - Meal Prep'!$B$5:$B$152,'Order Form'!$B79,'Macro Breakdown - Meal Prep'!$C$5:$C$152,'Order Form'!$C79) -> 0 | H79: =SUMIFS('Macro Breakdown - Meal Prep'!J$5:J$152,'Macro Breakdown - Meal Prep'!$B$5:$B$152,'Order Form'!$B79,'Macro Breakdown - Meal Prep'!$C$5:$C$152,'Order Form'!$C79) -> 0
D80: =SUMIFS('Macro Breakdown - Meal Prep'!$K:$K,'Macro Breakdown - Meal Prep'!$B:$B,'Order Form'!$B80,'Macro Breakdown - Meal Prep'!$C:$C,'Order Form'!$C80) -> 0 | E80: =SUMIFS('Macro Breakdown - Meal Prep'!I$5:I$152,'Macro Breakdown - Meal Prep'!$B$5:$B$152,'Order Form'!$B80,'Macro Breakdown - Meal Prep'!$C$5:$C$152,'Order Form'!$C80) -> 0 | F80: =SUMIFS('Macro Breakdown - Meal Prep'!H$5:H$152,'Macro Breakdown - Meal Prep'!$B$5:$B$152,'Order Form'!$B80,'Macro Breakdown - Meal Prep'!$C$5:$C$152,'Order Form'!$C80) -> 0 | G80: =SUMIFS('Macro Breakdown - Meal Prep'!G$5:G$152,'Macro Breakdown - Meal Prep'!$B$5:$B$152,'Order Form'!$B80,'Macro Breakdown - Meal Prep'!$C$5:$C$152,'Order Form'!$C80) -> 0 | H80: =SUMIFS('Macro Breakdown - Meal Prep'!J$5:J$152,'Macro Breakdown - Meal Prep'!$B$5:$B$152,'Order Form'!$B80,'Macro Breakdown - Meal Prep'!$C$5:$C$152,'Order Form'!$C80) -> 0
D81: =SUMIFS('Macro Breakdown - Meal Prep'!$K:$K,'Macro Breakdown - Meal Prep'!$B:$B,'Order Form'!$B81,'Macro Breakdown - Meal Prep'!$C:$C,'Order Form'!$C81) -> 0 | E81: =SUMIFS('Macro Breakdown - Meal Prep'!I$5:I$152,'Macro Breakdown - Meal Prep'!$B$5:$B$152,'Order Form'!$B81,'Macro Breakdown - Meal Prep'!$C$5:$C$152,'Order Form'!$C81) -> 0 | F81: =SUMIFS('Macro Breakdown - Meal Prep'!H$5:H$152,'Macro Breakdown - Meal Prep'!$B$5:$B$152,'Order Form'!$B81,'Macro Breakdown - Meal Prep'!$C$5:$C$152,'Order Form'!$C81) -> 0 | G81: =SUMIFS('Macro Breakdown - Meal Prep'!G$5:G$152,'Macro Breakdown - Meal Prep'!$B$5:$B$152,'Order Form'!$B81,'Macro Breakdown - Meal Prep'!$C$5:$C$152,'Order Form'!$C81) -> 0 | H81: =SUMIFS('Macro Breakdown - Meal Prep'!J$5:J$152,'Macro Breakdown - Meal Prep'!$B$5:$B$152,'Order Form'!$B81,'Macro Breakdown - Meal Prep'!$C$5:$C$152,'Order Form'!$C81) -> 0
D82: =SUMIFS('Macro Breakdown - Meal Prep'!$K:$K,'Macro Breakdown - Meal Prep'!$B:$B,'Order Form'!$B82,'Macro Breakdown - Meal Prep'!$C:$C,'Order Form'!$C82) -> 0 | E82: =SUMIFS('Macro Breakdown - Meal Prep'!I$5:I$152,'Macro Breakdown - Meal Prep'!$B$5:$B$152,'Order Form'!$B82,'Macro Breakdown - Meal Prep'!$C$5:$C$152,'Order Form'!$C82) -> 0 | F82: =SUMIFS('Macro Breakdown - Meal Prep'!H$5:H$152,'Macro Breakdown - Meal Prep'!$B$5:$B$152,'Order Form'!$B82,'Macro Breakdown - Meal Prep'!$C$5:$C$152,'Order Form'!$C82) -> 0 | G82: =SUMIFS('Macro Breakdown - Meal Prep'!G$5:G$152,'Macro Breakdown - Meal Prep'!$B$5:$B$152,'Order Form'!$B82,'Macro Breakdown - Meal Prep'!$C$5:$C$152,'Order Form'!$C82) -> 0 | H82: =SUMIFS('Macro Breakdown - Meal Prep'!J$5:J$152,'Macro Breakdown - Meal Prep'!$B$5:$B$152,'Order Form'!$B82,'Macro Breakdown - Meal Prep'!$C$5:$C$152,'Order Form'!$C82) -> 0
D83: =SUMIFS('Macro Breakdown - Meal Prep'!$K:$K,'Macro Breakdown - Meal Prep'!$B:$B,'Order Form'!$B83,'Macro Breakdown - Meal Prep'!$C:$C,'Order Form'!$C83) -> 0 | E83: =SUMIFS('Macro Breakdown - Meal Prep'!I$5:I$152,'Macro Breakdown - Meal Prep'!$B$5:$B$152,'Order Form'!$B83,'Macro Breakdown - Meal Prep'!$C$5:$C$152,'Order Form'!$C83) -> 0 | F83: =SUMIFS('Macro Breakdown - Meal Prep'!H$5:H$152,'Macro Breakdown - Meal Prep'!$B$5:$B$152,'Order Form'!$B83,'Macro Breakdown - Meal Prep'!$C$5:$C$152,'Order Form'!$C83) -> 0 | G83: =SUMIFS('Macro Breakdown - Meal Prep'!G$5:G$152,'Macro Breakdown - Meal Prep'!$B$5:$B$152,'Order Form'!$B83,'Macro Breakdown - Meal Prep'!$C$5:$C$152,'Order Form'!$C83) -> 0 | H83: =SUMIFS('Macro Breakdown - Meal Prep'!J$5:J$152,'Macro Breakdown - Meal Prep'!$B$5:$B$152,'Order Form'!$B83,'Macro Breakdown - Meal Prep'!$C$5:$C$152,'Order Form'!$C83) -> 0
D84: =SUMIFS('Macro Breakdown - Meal Prep'!$K:$K,'Macro Breakdown - Meal Prep'!$B:$B,'Order Form'!$B84,'Macro Breakdown - Meal Prep'!$C:$C,'Order Form'!$C84) -> 0 | E84: =SUMIFS('Macro Breakdown - Meal Prep'!I$5:I$152,'Macro Breakdown - Meal Prep'!$B$5:$B$152,'Order Form'!$B84,'Macro Breakdown - Meal Prep'!$C$5:$C$152,'Order Form'!$C84) -> 0 | F84: =SUMIFS('Macro Breakdown - Meal Prep'!H$5:H$152,'Macro Breakdown - Meal Prep'!$B$5:$B$152,'Order Form'!$B84,'Macro Breakdown - Meal Prep'!$C$5:$C$152,'Order Form'!$C84) -> 0 | G84: =SUMIFS('Macro Breakdown - Meal Prep'!G$5:G$152,'Macro Breakdown - Meal Prep'!$B$5:$B$152,'Order Form'!$B84,'Macro Breakdown - Meal Prep'!$C$5:$C$152,'Order Form'!$C84) -> 0 | H84: =SUMIFS('Macro Breakdown - Meal Prep'!J$5:J$152,'Macro Breakdown - Meal Prep'!$B$5:$B$152,'Order Form'!$B84,'Macro Breakdown - Meal Prep'!$C$5:$C$152,'Order Form'!$C84) -> 0
D85: =SUMIFS('Macro Breakdown - Meal Prep'!$K:$K,'Macro Breakdown - Meal Prep'!$B:$B,'Order Form'!$B85,'Macro Breakdown - Meal Prep'!$C:$C,'Order Form'!$C85) -> 0 | E85: =SUMIFS('Macro Breakdown - Meal Prep'!I$5:I$152,'Macro Breakdown - Meal Prep'!$B$5:$B$152,'Order Form'!$B85,'Macro Breakdown - Meal Prep'!$C$5:$C$152,'Order Form'!$C85) -> 0 | F85: =SUMIFS('Macro Breakdown - Meal Prep'!H$5:H$152,'Macro Breakdown - Meal Prep'!$B$5:$B$152,'Order Form'!$B85,'Macro Breakdown - Meal Prep'!$C$5:$C$152,'Order Form'!$C85) -> 0 | G85: =SUMIFS('Macro Breakdown - Meal Prep'!G$5:G$152,'Macro Breakdown - Meal Prep'!$B$5:$B$152,'Order Form'!$B85,'Macro Breakdown - Meal Prep'!$C$5:$C$152,'Order Form'!$C85) -> 0 | H85: =SUMIFS('Macro Breakdown - Meal Prep'!J$5:J$152,'Macro Breakdown - Meal Prep'!$B$5:$B$152,'Order Form'!$B85,'Macro Breakdown - Meal Prep'!$C$5:$C$152,'Order Form'!$C85) -> 0
D86: =SUMIFS('Macro Breakdown - Meal Prep'!$K:$K,'Macro Breakdown - Meal Prep'!$B:$B,'Order Form'!$B86,'Macro Breakdown - Meal Prep'!$C:$C,'Order Form'!$C86) -> 0 | E86: =SUMIFS('Macro Breakdown - Meal Prep'!I$5:I$152,'Macro Breakdown - Meal Prep'!$B$5:$B$152,'Order Form'!$B86,'Macro Breakdown - Meal Prep'!$C$5:$C$152,'Order Form'!$C86) -> 0 | F86: =SUMIFS('Macro Breakdown - Meal Prep'!H$5:H$152,'Macro Breakdown - Meal Prep'!$B$5:$B$152,'Order Form'!$B86,'Macro Breakdown - Meal Prep'!$C$5:$C$152,'Order Form'!$C86) -> 0 | G86: =SUMIFS('Macro Breakdown - Meal Prep'!G$5:G$152,'Macro Breakdown - Meal Prep'!$B$5:$B$152,'Order Form'!$B86,'Macro Breakdown - Meal Prep'!$C$5:$C$152,'Order Form'!$C86) -> 0 | H86: =SUMIFS('Macro Breakdown - Meal Prep'!J$5:J$152,'Macro Breakdown - Meal Prep'!$B$5:$B$152,'Order Form'!$B86,'Macro Breakdown - Meal Prep'!$C$5:$C$152,'Order Form'!$C86) -> 0
D87: =SUMIFS('Macro Breakdown - Meal Prep'!$K:$K,'Macro Breakdown - Meal Prep'!$B:$B,'Order Form'!$B87,'Macro Breakdown - Meal Prep'!$C:$C,'Order Form'!$C87) -> 0 | E87: =SUMIFS('Macro Breakdown - Meal Prep'!I$5:I$152,'Macro Breakdown - Meal Prep'!$B$5:$B$152,'Order Form'!$B87,'Macro Breakdown - Meal Prep'!$C$5:$C$152,'Order Form'!$C87) -> 0 | F87: =SUMIFS('Macro Breakdown - Meal Prep'!H$5:H$152,'Macro Breakdown - Meal Prep'!$B$5:$B$152,'Order Form'!$B87,'Macro Breakdown - Meal Prep'!$C$5:$C$152,'Order Form'!$C87) -> 0 | G87: =SUMIFS('Macro Breakdown - Meal Prep'!G$5:G$152,'Macro Breakdown - Meal Prep'!$B$5:$B$152,'Order Form'!$B87,'Macro Breakdown - Meal Prep'!$C$5:$C$152,'Order Form'!$C87) -> 0 | H87: =SUMIFS('Macro Breakdown - Meal Prep'!J$5:J$152,'Macro Breakdown - Meal Prep'!$B$5:$B$152,'Order Form'!$B87,'Macro Breakdown - Meal Prep'!$C$5:$C$152,'Order Form'!$C87) -> 0
C88: Total | D88: =SUM($D77:$D87) -> 0 | E88: =SUM(E77:E87) -> 0 | F88: =SUM(F77:F87) -> 0 | G88: 0 | H88: 0

Sheet Macro Breakdown - Meal Prep (hidden)
B1: Eat Clean Express & Meal Prep 102-795 McGill Rd Kamloops, BC 778-471-0804
K3: EFFECTIVE 03.31.2022
B4: Item | C4: Portion | D4: Metric UofM | E4: Portion | F4: Imperial UofM | G4: Fat | H4: Carb | I4: Protein | J4: Calories | K4: Price
A5: Breakfast | B5: Apples | C5: 100 | D5: g | E5: 3.51 | F5: oz | G5: 0 | H5: 12.4 | I5: 0 | J5: =SUM(I5*4)+(H5*4)+(G5*9) -> 49.6 | K5: 3.25
A6: Breakfast | B6: Banana | C6: 100 | D6: g | E6: 3.5 | F6: oz | G6: 0.3 | H6: 22.8 | I6: 1.1 | J6: 98.3 | K6: 3.25
A7: Breakfast | B7: Breakfast Burrito | C7: 1 | D7: ea | E7: 1 | F7: ea | G7: 25.2 | H7: 55.35 | I7: 28.08 | J7: 560.52 | K7: 9.99
A8: Breakfast | B8: Egg Bites (cheddar, spinach, jalepeno) | C8: 1 | D8: ea | E8: 2 | F8: ea | G8: 19.2 | H8: 4.65 | I8: 18.38 | J8: 264.92 | K8: 6.99
A9: Breakfast | B9: Egg Bites (feta & red pepper) | C9: 1 | D9: ea | E9: 2 | F9: ea | G9: 17.6 | H9: 8.8 | I9: 19.53 | J9: 271.72 | K9: 6.99
A10: Breakfast | B10: Protein French Toast | C10: 1 | D10: ea | E10: 2 | F10: ea | K10: 9.99
A11: Breakfast | B11: Protein Waffle | C11: 1 | D11: ea | E11: 1 | F11: ea | G11: 2 | H11: 30 | I11: 15 | J11: 198 | K11: 9.99
A12: Breakfast | B12: Strawberries | C12: 100 | D12: g | E12: 3.51 | F12: oz | G12: 0.3 | H12: 7.68 | I12: 0.67 | J12: 36.1 | K12: 4.25
A13: Carb | B13: Brown Rice | C13: 50 | D13: g | E13: 1.76 | F13: oz | G13: 0.5 | H13: 11.5 | I13: 1.3 | J13: 55.7 | K13: 2
A14: Carb | B14: Brown Rice | C14: 100 | D14: g | E14: 3.51 | F14: oz | G14: 0.936 | H14: 23 | I14: 2.6 | J14: 110.824 | K14: 2.75
A15: Carb | B15: Brown Rice | C15: 150 | D15: g | E15: 5.3 | F15: oz | G15: 1.4 | H15: 34.4 | I15: 3.9 | J15: 165.8 | K15: 3.5
A16: Carb | B16: Brown Rice | C16: 200 | D16: g | E16: 7.05 | F16: oz | G16: 1.8 | H16: 45.9 | I16: 5.2 | J16: 220.6 | K16: 4.25
A17: Carb | B17: Butternut Squash | C17: 50 | D17: g | E17: 1.8 | F17: oz | G17: 0 | H17: 5.2 | I17: 0.5 | J17: 22.8 | K17: 2.75
A18: Carb | B18: Butternut Squash | C18: 100 | D18: g | E18: 3.51 | F18: oz | G18: 0 | H18: 10.4 | I18: 0.936 | J18: 45.344 | K18: 3.75
A19: Carb | B19: Butternut Squash | C19: 150 | D19: g | E19: 5.3 | F19: oz | G19: 0.1 | H19: 15.7 | I19: 1.4 | J19: 69.3 | K19: 4.75
A20: Carb | B20: Butternut Squash | C20: 200 | D20: g | E20: 7.05 | F20: oz | G20: 0.2 | H20: 20.9 | I20: 1.8 | J20: 92.6 | K20: 5.75
A21: Carb | B21: Gluten Free Penne Pasta | C21: 50 | D21: g | E21: 1.8 | F21: oz | G21: =G22/2 -> 0.8775 | H21: =H22/2 -> 38.61 | I21: =I22/2 -> 2.925 | J21: 174.0375 | K21: 2.5
A22: Carb | B22: Gluten Free Penne Pasta | C22: 100 | D22: g | E22: 3.51 | F22: oz | G22: 1.755 | H22: 77.22 | I22: 5.85 | J22: 348.075 | K22: 3.5
A23: Carb | B23: Gluten Free Penne Pasta | C23: 150 | D23: g | E23: 5.3 | F23: oz | G23: =SUM(G21:G22) -> 2.6325 | H23: =SUM(H21:H22) -> 115.83 | I23: =SUM(I21:I22) -> 8.775 | J23: 522.1125 | K23: 4.75
A24: Carb | B24: Gluten Free Penne Pasta | C24: 200 | D24: g | E24: 7.05 | F24: oz | G24: 3.525 | H24: 155.1 | I24: 11.75 | J24: 699.125 | K24: 5.75
A25: Carb | B25: Quinoa | C25: 50 | D25: g | E25: 1.8 | F25: oz | G25: 1 | H25: 10.7 | I25: 2.2 | J25: 60.6 | K25: 2.5
A26: Carb | B26: Quinoa | C26: 100 | D26: g | E26: 3.51 | F26: oz | G26: 1.9 | H26: 21.3 | I26: 4.4 | J26: 119.9 | K26: 3.5
A27: Carb | B27: Quinoa | C27: 150 | D27: g | E27: 5.3 | F27: oz | G27: =SUM(G25:G26) -> 2.9 | H27: =SUM(H25:H26) -> 32 | I27: =SUM(I25:I26) -> 6.6 | J27: 180.5 | K27: 4.75
A28: Carb | B28: Quinoa | C28: 200 | D28: g | E28: 7.05 | F28: oz | G28: 3.8 | H28: 42.6 | I28: 8.8 | J28: 239.8 | K28: 5.75
A29: Carb | B29: Sweet Potato | C29: 50 | D29: g | E29: 1.8 | F29: oz | G29: 0.01 | H29: 10.4 | I29: 1 | J29: 45.69 | K29: 2.75
A30: Carb | B30: Sweet Potato | C30: 100 | D30: g | E30: 3.51 | F30: oz | G30: 0.2 | H30: 20.7 | I30: 1.989 | J30: 92.556 | K30: 3.75
A31: Carb | B31: Sweet Potato | C31: 150 | D31: g | E31: 5.3 | F31: oz | G31: 0.2 | H31: 31.1 | I31: 3 | J31: 138.2 | K31: 4.75
A32: Carb | B32: Sweet Potato | C32: 200 | D32: g | E32: 7.05 | F32: oz | G32: 0.3 | H32: 41.4 | I32: 3.995 | J32: 184.28 | K32: 5.75
A33: Carb | B33: White Rice | C33: 50 | D33: g | E33: 1.8 | F33: oz | G33: 0.1 | H33: 14.1 | I33: 1.3 | J33: 62.5 | K33: 2
A34: Carb | B34: White Rice | C34: 100 | D34: g | E34: 3.51 | F34: oz | G34: 0.3 | H34: 28.2 | I34: 2.7 | J34: 126.3 | K34: 2.75
A35: Carb | B35: White Rice | C35: 150 | D35: g | E35: 5.3 | F35: oz | G35: 0.4 | H35: 42.3 | I35: 4 | J35: 188.8 | K35: 3.5
A36: Carb | B36: White Rice | C36: 200 | D36: g | E36: 7.05 | F36: oz | G36: 0.6 | H36: 56.3 | I36: 5.4 | J36: 252.2 | K36: 4.25
A37: Carb | B37: Zucchini | C37: 50 | D37: g | E37: 1.8 | F37: oz | G37: 0.2 | H37: 1.3 | I37: 0.6 | J37: 9.4 | K37: 2.75
A38: Carb | B38: Zucchini | C38: 100 | D38: g | E38: 3.51 | F38: oz | G38: 0.4 | H38: 2.7 | I38: 1.053 | J38: =SUM(I38*4)+(H38*4)+(G38*9) -> 18.612 | K38: 3.75
A39: Carb | B39: Zucchini | C39: 150 | D39: g | E39: 5.3 | F39: oz | G39: 0.5 | H39: 4 | I39: 1.7 | J39: 27.3 | K39: 4.75
A40: Carb | B40: Zucchini | C40: 200 | D40: g | E40: 7.05 | F40: oz | G40: 0.7 | H40: 5.4 | I40: 2.3 | J40: 37.1 | K40: 5.75
A41: Cheese | B41: Cheddar | C41: 30 | D41: g | E41: 1 | F41: oz | G41: 9 | H41: 1 | I41: 4 | J41: 101 | K41: 2
A42: Cheese | B42: Cheddar | C42: 60 | D42: g | E42: 2 | F42: oz | G42: 18 | H42: 2 | I42: 8 | J42: 202 | K42: 3.75
A43: Cheese | B43: Daiya | C43: 30 | D43: g | E43: 1 | F43: oz | G43: 4.5 | H43: 6.75 | I43: 0.25 | J43: 68.5 | K43: 2
A44: Cheese | B44: Daiya | C44: 60 | D44: g | E44: 2 | F44: oz | G44: 9 | H44: 13.5 | I44: 0.5 | J44: 137 | K44: 3.75
A45: Cheese | B45: Feta | C45: 30 | D45: g | E45: 1 | F45: oz | G45: 7 | H45: 1 | I45: 5 | J45: 87 | K45: 2
A46: Cheese | B46: Feta | C46: 60 | D46: g | E46: 2 | F46: oz | G46: 14 | H46: 2 | I46: 10 | J46: 174 | K46: 3.75
A47: Cheese | B47: Goat Cheese | C47: 30 | D47: g | E47: 1 | F47: oz | G47: 6 | H47: 2 | I47: 5 | J47: 82 | K47: 2
A48: Cheese | B48: Goat Cheese | C48: 60 | D48: g | E48: 2 | F48: oz | G48: 12 | H48: 4 | I48: 10 | J48: 164 | K48: 3.75
A49: Flavor God Seasoning | B49: Buffalo | C49: 1 | D49: g | E49: 0.03 | F49: oz | G49: 0 | H49: 0 | I49: 0 | J49: 0 | K49: 0.5
A50: Flavor God Seasoning | B50: Cajun Lovers | C50: 1 | D50: g | E50: 0.03 | F50: oz | G50: 0 | H50: 0 | I50: 0 | J50: 0 | K50: 0.5
A51: Flavor God Seasoning | B51: Chipotle | C51: 1 | D51: g | E51: 0.03 | F51: oz | G51: 0 | H51: 0 | I51: 0 | J51: 0 | K51: 0.5
A52: Flavor God Seasoning | B52: Everything | C52: 1 | D52: g | E52: 0.03 | F52: oz | G52: 0 | H52: 0 | I52: 0 | J52: 0 | K52: 0.5
A53: Flavor God Seasoning | B53: Garlic & Herb Salt | C53: 1 | D53: g | E53: 0.03 | F53: oz | G53: 0 | H53: 0 | I53: 0 | J53: 0 | K53: 0.5
A54: Flavor God Seasoning | B54: Garlic Lovers | C54: 1 | D54: g | E54: 0.03 | F54: oz | G54: 0 | H54: 0 | I54: 0 | J54: 0 | K54: 0.5
A55: Flavor God Seasoning | B55: Honey BBQ | C55: 1 | D55: g | E55: 0.03 | F55: oz | G55: 0 | H55: 0 | I55: 0 | J55: 0 | K55: 0.5
A56: Flavor God Seasoning | B56: Italian Zest | C56: 1 | D56: g | E56: 0.03 | F56: oz | G56: 0 | H56: 0 | I56: 0 | J56: 0 | K56: 0.5
A57: Flavor God Seasoning | B57: Lemon & Garlic | C57: 1 | D57: g | E57: 0.03 | F57: oz | G57: 0 | H57: 0 | I57: 0 | J57: 0 | K57: 0.5
A58: Flavor God Seasoning | B58: Ranch | C58: 1 | D58: g | E58: 0.03 | F58: oz | G58: 0 | H58: 0 | I58: 0 | J58: 0 | K58: 0.5
A59: Flavor God Seasoning | B59: Sriracha | C59: 1 | D59: g | E59: 0.03 | F59: oz | G59: 0 | H59: 0 | I59: 0 | J59: 0 | K59: 0.5
A60: Flavor God Seasoning | B60: Steak & Chop Rub | C60: 1 | D60: g | E60: 0.03 | F60: oz | G60: 0 | H60: 0 | I60: 0 | J60: 0 | K60: 0.5
A61: Flavor God Seasoning | B61: Taco Tuesday | C61: 1 | D61: g | E61: 0.03 | F61: oz | G61: 0 | H61: 0 | I61: 0 | J61: 0 | K61: 0.5
A62: Protein | B62: Beyond Meat | C62: 50 | D62: g | E62: 1.8 | F62: oz | G62: =G63/2 -> 6.786 | H62: =H63/2 -> 2.691 | I62: =I63/2 -> 11.7 | J62: 118.638 | K62: 3.95
A63: Protein | B63: Beyond Meat | C63: 100 | D63: g | E63: 3.51 | F63: oz | G63: 13.572 | H63: 5.382 | I63: 23.4 | J63: 237.276 | K63: 5
A64: Protein | B64: Beyond Meat | C64: 150 | D64: g | E64: 5.3 | F64: oz | G64: =SUM(G62:G63) -> 20.358 | H64: =SUM(H62:H63) -> 8.073 | I64: =SUM(I62:I63) -> 35.1 | J64: 355.914 | K64: 6.75
A65: Protein | B65: Beyond Meat | C65: 200 | D65: g | E65: 7.05 | F65: oz | G65: 27.26 | H65: 10.81 | I65: 47 | J65: 476.58 | K65: 7.95
A66: Protein | B66: Black Beans | C66: 50 | D66: g | E66: 1.8 | F66: oz | G66: 0.1 | H66: 8.2 | I66: 3 | J66: 45.7 | K66: 2.5
A67: Protein | B67: Black Beans | C67: 100 | D67: g | E67: 3.51 | F67: oz | G67: 0.3 | H67: 16.6 | I67: 5.7 | J67: 91.9 | K67: 3.5
A68: Protein | B68: Black Beans | C68: 150 | D68: g | E68: 5.3 | F68: oz | G68: 0.4 | H68: 24.8 | I68: 9 | J68: 138.8 | K68: 4.5
A69: Protein | B69: Black Beans | C69: 200 | D69: g | E69: 7.05 | F69: oz | G69: 0.8225 | H69: 35.015 | I69: 10.8335 | J69: 190.7965 | K69: 5.5
A70: Protein | B70: Chicken Breast | C70: 50 | D70: g | E70: 1.8 | F70: oz | G70: 1.6 | H70: 0 | I70: 16 | J70: =SUM(I70*4)+(H70*4)+(G70*9) -> 78.4 | K70: 3.95
A71: Protein | B71: Chicken Breast | C71: 100 | D71: g | E71: 3.51 | F71: oz | G71: 3.2 | H71: 0 | I71: 32.1 | J71: 157.2 | K71: 5.95
A72: Protein | B72: Chicken Breast | C72: 150 | D72: g | E72: 5.3 | F72: oz | G72: =SUM(G70:G71) -> 4.8 | H72: =SUM(H70:H71) -> 0 | I72: =SUM(I70:I71) -> 48.1 | J72: 235.6 | K72: 7.95
A73: Protein | B73: Chicken Breast | C73: 200 | D73: g | E73: 7.05 | F73: oz | G73: 6.4 | H73: 0 | I73: 64.1 | J73: 314 | K73: 9.95
A74: Protein | B74: Ground Beef (Lean, Halal) | C74: 50 | D74: g | E74: 1.8 | F74: oz | G74: 5.6 | H74: 0 | I74: 13.3 | J74: 103.6 | K74: 3.95
A75: Protein | B75: Ground Beef (Lean, Halal) | C75: 100 | D75: g | E75: 3.51 | F75: oz | G75: 11.1 | H75: 0 | I75: 26.6 | J75: 206.3 | K75: 5.95
A76: Protein | B76: Ground Beef (Lean, Halal) | C76: 150 | D76: g | E76: 5.3 | F76: oz | G76: 16.7 | H76: 0 | I76: 39.9 | J76: 309.9 | K76: 7.95
A77: Protein | B77: Ground Beef (Lean, Halal) | C77: 200 | D77: g | E77: 7.05 | F77: oz | G77: 22.2 | H77: 0 | I77: 53.2 | J77: 412.6 | K77: 9.95
A78: Protein | B78: Ground Bison | C78: 50 | D78: g | E78: 1.8 | F78: oz | G78: 4.3 | H78: 0 | I78: 12.7 | J78: 89.5 | K78: 3.95
A79: Protein | B79: Ground Bison | C79: 100 | D79: g | E79: 3.51 | F79: oz | G79: 8.6 | H79: 0 | I79: 25.5 | J79: 179.4 | K79: 5.95
A80: Protein | B80: Ground Bison | C80: 150 | D80: g | E80: 5.3 | F80: oz | G80: 12.9 | H80: 0 | I80: 38.2 | J80: 268.9 | K80: 7.95
A81: Protein | B81: Ground Bison | C81: 200 | D81: g | E81: 7.05 | F81: oz | G81: 17.2 | H81: 0 | I81: 50.9 | J81: 358.4 | K81: 9.95
A82: Protein | B82: Ground Turkey | C82: 50 | D82: g | E82: 1.8 | F82: oz | G82: 5.2 | H82: 0 | I82: 13.7 | J82: 101.6 | K82: 3.95
A83: Protein | B83: Ground Turkey | C83: 100 | D83: g | E83: 3.5 | F83: oz | G83: 10.4 | H83: 0 | I83: 27.4 | J83: 203.2 | K83: 5.95
A84: Protein | B84: Ground Turkey | C84: 150 | D84: g | E84: 5.3 | F84: oz | G84: 15.6 | H84: 0 | I84: 41.1 | J84: 304.8 | K84: 7.95
A85: Protein | B85: Ground Turkey | C85: 200 | D85: g | E85: 3.5 | F85: oz | G85: 20.8 | H85: 0 | I85: 54.7 | J85: 406 | K85: 9.95
A86: Protein | B86: Salmon | C86: 50 | D86: g | E86: 1.8 | F86: oz | G86: 3.3 | H86: 0 | I86: 12.7 | J86: 80.5 | K86: 4.75
A87: Protein | B87: Salmon | C87: 100 | D87: g | E87: 3.5 | F87: oz | G87: 6.7 | H87: 0 | I87: 25.4 | J87: 161.9 | K87: 7.95
A88: Protein | B88: Salmon | C88: 150 | D88: g | E88: 5.3 | F88: oz | G88: 10 | H88: 0 | I88: 38.1 | J88: 242.4 | K88: 11.15
A89: Protein | B89: Salmon | C89: 200 | D89: g | E89: 7.1 | F89: oz | G89: 13.4 | H89: 0 | I89: 50.8 | J89: 323.8 | K89: 14.35
A90: Protein | B90: Shrimp | C90: 50 | D90: g | E90: 1.8 | F90: oz | G90: 0.9 | H90: 0.8 | I90: 11.4 | J90: 56.9 | K90: 4.75
A91: Protein | B91: Shrimp | C91: 100 | D91: g | E91: 3.51 | F91: oz | G91: 1.7 | H91: 1.5 | I91: 22.8 | J91: 112.5 | K91: 7.95
A92: Protein | B92: Shrimp | C92: 150 | D92: g | E92: 5.3 | F92: oz | G92: 2.6 | H92: 2.3 | I92: 34.2 | J92: 169.4 | K92: 11.15
A93: Protein | B93: Shrimp | C93: 200 | D93: g | E93: 7.05 | F93: oz | G93: 3.4 | H93: 3 | I93: 45.6 | J93: 225 | K93: 14.35
A94: Protein | B94: Sirloin | C94: 50 | D94: g | E94: 1.8 | F94: oz | G94: 7.7 | H94: 0 | I94: 13.5 | J94: 123.3 | K94: 4.75
A95: Protein | B95: Sirloin | C95: 100 | D95: g | E95: 3.5 | F95: oz | G95: 15.4 | H95: 0 | I95: 26.9 | J95: 246.2 | K95: 7.95
A96: Protein | B96: Sirloin | C96: 150 | D96: g | E96: 5.3 | F96: oz | G96: 23.2 | H96: 0 | I96: 40.4 | J96: 370.4 | K96: 11.15
A97: Protein | B97: Sirloin | C97: 200 | D97: g | E97: 7.05 | F97: oz | G97: 30.9 | H97: 0 | I97: 53.8 | J97: 493.3 | K97: 14.35
A98: Protein | B98: Tofu | C98: 50 | D98: g | E98: 1.8 | F98: oz | G98: 5.88 | H98: 1.17 | I98: 7.65 | J98: 88.2 | K98: 2.5
A99: Protein | B99: Tofu | C99: 100 | D99: g | E99: 3.51 | F99: oz | G99: =G98*2 -> 11.76 | H99: =H98*2 -> 2.34 | I99: =I98*2 -> 15.3 | J99: 176.4 | K99: 3.75
A100: Protein | B100: Tofu | C100: 150 | D100: g | E100: 5.3 | F100: oz | G100: =G98*3 -> 17.64 | H100: =H98*3 -> 3.51 | I100: =I98*3 -> 22.95 | J100: 264.6 | K100: 5
A101: Protein | B101: Tofu | C101: 200 | D101: g | E101: 7.05 | F101: oz | G101: =G98*4 -> 23.52 | H101: =H98*4 -> 4.68 | I101: =I98*4 -> 30.6 | J101: 352.8 | K101: 6.25
A102: Sauce | B102: Balsamic & Olive Oil | C102: 15 | D102: g | E102: 0.25 | F102: oz | G102: 15 | H102: 1.5 | I102: 0 | J102: =SUM(I102*4)+(H102*4)+(G102*9) -> 141 | K102: 1.5
A103: Sauce | B103: Balsamic & Olive Oil | C103: 30 | D103: g | E103: 1 | F103: oz | G103: 30 | H103: 3 | I103: 0.1 | J103: 282.4 | K103: 2
A104: Sauce | B104: Balsamic Dressing | C104: 30 | D104: g | E104: 1 | F104: oz | G104: 8 | H104: 4 | I104: 0.2 | J104: 88.8 | K104: 2
A105: Sauce | B105: Basil Pesto | C105: 30 | D105: g | E105: 1 | F105: oz | G105: 12 | H105: 1.3 | I105: 3.3 | J105: 126.4 | K105: 2
A106: Sauce | B106: Chipotle Mayo | C106: 30 | D106: g | E106: 1 | F106: oz | G106: 6 | H106: 1.5 | I106: 0.2 | J106: 60.8 | K106: 2
A107: Sauce | B107: Extra Virgin Olive Oil | C107: 15 | D107: g | E107: 0.5 | F107: oz | G107: 15 | H107: 0 | I107: 0 | J107: 135 | K107: 1.5
A108: Sauce | B108: Extra Virgin Olive Oil | C108: 30 | D108: g | E108: 1 | F108: oz | G108: 30 | H108: 0 | I108: 0 | J108: 270 | K108: 2
A109: Sauce | B109: Ketchup, No Sugar Added | C109: 30 | D109: g | E109: 1 | F109: oz | G109: 0 | H109: 2 | I109: 0 | J109: 8 | K109: 2
A110: Sauce | B110: Marinara | C110: 50 | D110: g | E110: 2 | F110: oz | G110: 0.2 | H110: 5 | I110: 0.8 | J110: 25 | K110: 3
A111: Sauce | B111: Mustard | C111: 30 | D111: g | E111: 1 | F111: oz | G111: 1.2 | H111: 0.8 | I111: 0 | J111: 14 | K111: 2
A112: Sauce | B112: Raspberry Vinaigrette, Fat Free | C112: 30 | D112: g | E112: 1 | F112: oz | G112: 0 | H112: 6 | I112: 0 | J112: 24 | K112: 2
A113: Sauce | B113: Salsa | C113: 50 | D113: g | E113: 2 | F113: oz | G113: 0 | H113: 4 | I113: 0.8 | J113: 19.2 | K113: 3
A114: Sauce | B114: Sour Cream | C114: 30 | D114: g | E114: 1 | F114: oz | G114: 4.36 | H114: 2.06 | I114: 1.2 | J114: 52.28 | K114: 2
A115: Sauce | B115: Sriracha | C115: 30 | D115: g | E115: 1 | F115: oz | G115: 0 | H115: 0 | I115: 0.3 | J115: 1.2 | K115: 2
A116: Sauce | B116: Sweet Chili Thai | C116: 30 | D116: g | E116: 1 | F116: oz | G116: 0 | H116: 14 | I116: 0.1 | J116: 56.4 | K116: 2
A117: Sauce | B117: Syrup, Walden's Zero Calorie, Blueberry | C117: 30 | D117: g | E117: 1 | F117: oz | G117: 0 | H117: 0 | I117: 0 | J117: 0 | K117: 2
A118: Sauce | B118: Syrup, Walden's Zero Calorie, Caramel | C118: 30 | D118: g | E118: 1 | F118: oz | G118: 0 | H118: 0 | I118: 0 | J118: 0 | K118: 2
A119: Sauce | B119: Syrup, Walden's Zero Calorie, Chocolate | C119: 30 | D119: g | E119: 1 | F119: oz | G119: 0 | H119: 0 | I119: 0 | J119: 0 | K119: 2
A120: Sauce | B120: Syrup, Walden's Zero Calorie, Maple | C120: 30 | D120: g | E120: 1 | F120: oz | G120: 0 | H120: 0 | I120: 0 | J120: 0 | K120: 2
A121: Sauce | B121: Syrup, Walden's Zero Calorie, Strawberry | C121: 30 | D121: g | E121: 1 | F121: oz | G121: 0 | H121: 0 | I121: 0 | J121: 0 | K121: 2
A122: Sauce | B122: Teriyaki | C122: 30 | D122: g | E122: 1 | F122: oz | G122: 0 | H122: 9 | I122: 0.5 | J122: =SUM(I122*4)+(H122*4)+(G122*9) -> 38 | K122: 2
A123: Sauce | B123: Tomato Basil Pesto | C123: 30 | D123: g | E123: 1 | F123: oz | G123: 17 | H123: 4.5 | I123: 2 | J123: 179 | K123: 2
A124: Sauce | B124: Tzatziki | C124: 30 | D124: g | E124: 1 | F124: oz | G124: 3.9 | H124: 2 | I124: 1 | J124: 47.1 | K124: 2
A125: Veggie | B125: Asparagus | C125: 50 | D125: g | E125: 1.8 | F125: oz | G125: 0.1 | H125: 2.1 | I125: 1.2 | J125: 14.1 | K125: 3
A126: Veggie | B126: Asparagus | C126: 100 | D126: g | E126: 3.5 | F126: oz | G126: 0.2 | H126: 4.1 | I126: 2.4 | J126: 27.8 | K126: 4.25
A127: Veggie | B127: Asparagus | C127: 150 | D127: g | E127: 5.3 | F127: oz | G127: 0.3 | H127: 6.2 | I127: 3.6 | J127: 41.9 | K127: 5.5
A128: Veggie | B128: Asparagus | C128: 200 | D128: g | E128: 7.05 | F128: oz | G128: 0.4 | H128: 8.2 | I128: 4.8 | J128: 55.6 | K128: 6.75
A129: Veggie | B129: Avocado | C129: 50 | D129: g | E129: 1.8 | F129: oz | G129: 7.3 | H129: 4.3 | I129: 1 | J129: 86.9 | K129: 3
A130: Veggie | B130: Avocado | C130: 100 | D130: g | E130: 3.5 | F130: oz | G130: 14.6 | H130: 8.5 | I130: 2 | J130: 173.4 | K130: 4.25
A131: Veggie | B131: Avocado | C131: 150 | D131: g | E131: 5.3 | F131: oz | G131: 21.9 | H131: 12.8 | I131: 3 | J131: 260.3 | K131: 5.5
A132: Veggie | B132: Avocado | C132: 200 | D132: g | E132: 7.05 | F132: oz | G132: 29.2 | H132: 17.1 | I132: 4 | J132: 347.2 | K132: 6.75
A133: Veggie | B133: Broccoli | C133: 50 | D133: g | E133: 1.8 | F133: oz | G133: 0 | H133: 3.6 | I133: 1.2 | J133: 19.2 | K133: 3
A134: Veggie | B134: Broccoli | C134: 100 | D134: g | E134: 3.5 | F134: oz | G134: 0.35 | H134: 7.2 | I134: 2.4 | J134: 41.55 | K134: 4.25
A135: Veggie | B135: Broccoli | C135: 150 | D135: g | E135: 5.3 | F135: oz | G135: 0.57 | H135: 10.8 | I135: 3.6 | J135: 62.73 | K135: 5.5
A136: Veggie | B136: Broccoli | C136: 200 | D136: g | E136: 7.05 | F136: oz | G136: 0.75 | H136: 14.4 | I136: 4.8 | J136: 83.55 | K136: 6.75
A137: Veggie | B137: Carrots | C137: 50 | D137: g | E137: 1.8 | F137: oz | G137: 0.1 | H137: 4.1 | I137: 0.4 | J137: 18.9 | K137: 3
A138: Veggie | B138: Carrots | C138: 100 | D138: g | E138: 3.5 | F138: oz | G138: 0.2 | H138: 8.2 | I138: 0.8 | J138: 37.8 | K138: 4.25
A139: Veggie | B139: Carrots | C139: 150 | D139: g | E139: 5.3 | F139: oz | G139: 0.3 | H139: 12.3 | I139: 1.1 | J139: 56.3 | K139: 5.5
A140: Veggie | B140: Carrots | C140: 200 | D140: g | E140: 7.05 | F140: oz | G140: 0.4 | H140: 16.4 | I140: 1.5 | J140: 75.2 | K140: 6.75
A141: Veggie | B141: Cauliflower | C141: 50 | D141: g | E141: 1.8 | F141: oz | G141: 0.2 | H141: 2.1 | I141: 0.9 | J141: 13.8 | K141: 3
A142: Veggie | B142: Cauliflower | C142: 100 | D142: g | E142: 3.5 | F142: oz | G142: 0.5 | H142: 4.1 | I142: 1.8 | J142: 28.1 | K142: 4.25
A143: Veggie | B143: Cauliflower | C143: 150 | D143: g | E143: 5.3 | F143: oz | G143: 0.7 | H143: 6.2 | I143: 2.7 | J143: 41.9 | K143: 5.5
A144: Veggie | B144: Cauliflower | C144: 200 | D144: g | E144: 7.05 | F144: oz | G144: 0.9 | H144: 8.2 | I144: 3.6 | J144: 55.3 | K144: 6.75
A145: Veggie | B145: Green Beans | C145: 50 | D145: g | E145: 1.8 | F145: oz | G145: 0.1 | H145: 3.2 | I145: 0.7 | J145: 16.5 | K145: 3
A146: Veggie | B146: Green Beans | C146: 100 | D146: g | E146: 3.5 | F146: oz | G146: 0.2 | H146: 6.5 | I146: 1.5 | J146: 33.8 | K146: 4.25
A147: Veggie | B147: Green Beans | C147: 150 | D147: g | E147: 5.3 | F147: oz | G147: 0.3 | H147: 9.7 | I147: 2.2 | J147: 50.3 | K147: 5.5
A148: Veggie | B148: Green Beans | C148: 200 | D148: g | E148: 7.05 | F148: oz | G148: 0.3 | H148: 12.9 | I148: 2.9 | J148: 65.9 | K148: 6.75
A149: Veggie | B149: Peppers, Red | C149: 50 | D149: g | E149: 1.8 | F149: oz | G149: 0.1 | H149: 3.4 | I149: 0.5 | J149: 16.5 | K149: 3
A150: Veggie | B150: Peppers, Red | C150: 100 | D150: g | E150: 3.5 | F150: oz | G150: 0.2 | H150: 6.7 | I150: 0.9 | J150: 32.2 | K150: 4.25
A151: Veggie | B151: Peppers, Red | C151: 150 | D151: g | E151: 5.3 | F151: oz | G151: 0.3 | H151: 10.1 | I151: 1.4 | J151: 48.7 | K151: 5.5
A152: Veggie | B152: Peppers, Red | C152: 200 | D152: g | E152: 7.05 | F152: oz | G152: 0.4 | H152: 13.4 | I152: 1.8 | J152: 64.4 | K152: 6.75
A153: Veggie | B153: Side Strawberry Spinach Salad no dressing | C153: 1 | D153: ea | E153: 3.51 | F153: oz | G153: 0 | H153: 4 | I153: 2 | J153: 24 | K153: 7.25
A154: Veggie | B154: Side Strawberry Spinach Salad w Raspberry Vinaigrette | C154: 1 | D154: ea | E154: 3.5 | F154: oz | G154: 0 | H154: 10 | I154: 2 | J154: 48 | K154: 8.25

Sheet Options List (hidden)
A1: Breakfast | B1: Carb | C1: Cheese | D1: Protein | E1: Veggie | F1: Sauce | G1: Spice | H1: Grams | I1: Food Type | J1: Quantity
A3: Apples | B3: Brown Rice | C3: Cheddar | D3: Beyond Meat | E3: Asparagus | F3: Balsamic & Olive Oil | G3: Buffalo | H3: 1 | I3: Breakfast | J3: 2
A4: Banana | B4: Butternut Squash | C4: Daiya Mozzarella | D4: Black Beans | E4: Avocado | F4: Balsamic Dressing | G4: Cajun Lovers | H4: 15 | I4: Carb | J4: 3
A5: Breakfast Burrito | B5: Gluten Free Penne Pasta | C5: Feta | D5: Chicken Breast | E5: Broccoli | F5: Basil Pesto | G5: Chipotle | H5: 30 | I5: Cheese | J5: 4
A6: Egg Bites (cheddar, spinach, jalepeno) | B6: Quinoa | D6: Ground Beef (Lean, Halal) | E6: Carrots | F6: Chipotle Mayo | G6: Everything | H6: 50 | I6: Protein | J6: 5
A7: Egg Bites (feta & red pepper) | B7: Sweet Potato | D7: Ground Bison | E7: Cauliflower | F7: Extra Virgin Olive Oil | G7: Garlic & Herb Salt | H7: 60 | I7: Sauce | J7: 6
A8: Protein French Toast | B8: White Rice | D8: Ground Turkey | E8: Green Beans | F8: Ketchup, No Sugar Added | G8: Garlic Lovers | H8: 100 | I8: Spice | J8: 7
A9: Protein Waffle | B9: Zucchini | D9: Salmon | E9: Peppers, Red | F9: Marinara | G9: Honey BBQ | H9: 150 | I9: Veggie | J9: 8
A10: Strawberries | D10: Shrimp | E10: Side Strawberry Spinach Salad no dressing | F10: Mustard | G10: Italian Zest | H10: 200 | J10: 9
D11: Sirloin | E11: Side Strawberry Spinach Salad w Raspberry Vinaigrette | F11: Raspberry Vinaigrette, Fat Free | G11: Lemon & Garlic | J11: 10
D12: Tofu | F12: Salsa | G12: Ranch | J12: 11
F13: Sour Cream | G13: Sriracha | J13: 12
F14: Sriracha | G14: Steak & Chop Rub | J14: 13
F15: Sweet Chili Thai | G15: Taco Tuesday | J15: 14
F16: Syrup, Walden's Zero Calorie, Blueberry | J16: 15
F17: Syrup, Walden's Zero Calorie, Caramel | J17: 16
F18: Syrup, Walden's Zero Calorie, Chocolate | J18: 17
F19: Syrup, Walden's Zero Calorie, Maple | J19: 18
F20: Syrup, Walden's Zero Calorie, Strawberry | J20: 19
F21: Teriyaki | J21: 20
F22: Tomato Basil Pesto
F23: Tzatziki
